Workbook

Sheet DANE
A1: INFO
A2: Numer | B2: 134
A3: Temat | B3: Aktualizacja i optymalizacja dokumentacji projektowej zadania wraz z pełnieniem nadzoru autorskiego podczas realizacji Inwestycji tj.: ”Rozbudowa drogi wojewódzkiej nr 548 Stolno-Wąbrzeźno od km 0+005 do km 29+619 z wyłączeniem węzła autostradowego w m. Lisewo od km 14+144 do km 15+146” Odcinek nr 2 – od km 15+146 do km 29+619
A5: CPV
A6: 45000000-9 | B6: Roboty budowlane w zakresie wznoszenia kompletnych obiektów budowlanych lub ich części oraz roboty w zakresie inżynierii lądowej i wodnej
A7: 45111000-8 | B7: Roboty w zakresie burzenia, roboty ziemne
A8: 45220000-5 | B8: Przepusty pod koroną drogi
A9: 45221110-6 | B9: Roboty budowlane w zakresie mostów
A10: 45221120-9 | B10: Roboty budowlane w zakresie wiaduktów
A11: 45230000-8 | B11: Roboty budowlane w zakresie budowy rurociągów, linii komunikacyjnych i elektroenergetycznych, autostrad, dróg, lotnisk i kolei; wyrównywanie terenu
A12: 45231220-3 | B12: Roboty budowlane w zakresie gazociągów
A13: 45231300-8 | B13: Roboty budowlane w zakresie budowy wodociągów i rurociągów do odprowadzania ścieków
A14: 45231400-9 | B14: Roboty budowlane w zakresie budowy linii energetycznych
A15: 45232310-8 | B15: Roboty budowlane w zakresie linii telefonicznych
A16: 45262522-6 | B16: Ekarany akustyczne
A17: 45332000-3 | B17: Roboty instalacyjne wodne i kanalizacyjne
A18: 45223500-1 | B18: Konstrukcje z betonu zbrojonego
A19: 45213320-2 | B19: Roboty budowlane w zakresie budowy obieków budowlanych związanych z transportem kolejowym
A21: Branza | C21: KOLORY
A22: D | B22: BRANŻA DROGOWA
A23: M | B23: BRANŻA MOSTOWA
A24: K-Ekr | B24: BRANŻA KONSTRUKCYJNA - EKRANY AKUSTYCZNE
A25: K-Rozb | B25: BRANŻA KONSTRUKCYJNA - ROZBIÓRKI
A26: S-Kd | B26: BRANŻA SANITARNA - KANALIZACJA DESZCZOWA
A27: S-Ks | B27: BRANŻA SANITARNA - KANALIZACJA SANITARNA
A28: S-G | B28: BRANŻA SANITARNA - SIEĆ GAZOWA
A29: S-W | B29: BRANŻA SANITARNA - SIEĆ WODOCIĄGOWA
A30: E-Osw | B30: BRANŻA ELEKTROENERGETYCZNA - OŚWIETLENIE
A31: E-nN | B31: BRANŻA ELEKTROENERGETYCZNA - SIEĆ NISKIEGO NAPIĘCIA
A32: E-SN | B32: BRANŻA ELEKTROENERGETYCZNA - SIEĆ ŚREDNIEGO NAPIĘCIA
A33: E-WN | B33: BRANŻA ELEKTROENERGETYCZNA - SIEĆ WYSOKIEGO NAPIĘCIA
A34: T | B34: BRANŻA TELEKOMUNIKACYJNA
A35: H | B35: BRANŻA MELIORACYJNA
A36: Z | B36: BRANŻA DENDROLOGICZNA

Sheet TER
A1: KOSZTORYS OFERTOWY 22.07
A2: Inwestycja | B2: =DANE!B3 -> Aktualizacja i optymalizacja dokumentacji projektowej zadania wraz z pełnieniem nadzoru autorskiego podczas realizacji Inwestycji tj.: ”Rozbudowa drogi wojewódzkiej nr 548 Stolno-Wąbrzeźno od km 0+005 do km 29+619 z wyłączeniem węzła autostradowego w m. Lisewo od km 14+144 do km 15+146” Odcinek nr 2 – od km 15+146 do km 29+619
A3: kod CPV: | B3: 45230000-8 Roboty budowlane w zakresie budowy rurociągów, linii komunikacyjnych i elektroenergetycznych, autostrad, dróg, lotnisk i kolei; wyrównywanie terenu
A4: Lp. | B4: TABELA ELEMENTÓW ROZLICZENIOWYCH
A5: 1 | B5: BRANŻA DROGOWA | E5: DROGA
A6: 2 | B6: BRANŻA MOSTOWA | E6: Roboty inżynieryjne
A7: 3 | B7: BRANŻA SANITARNA
B8: =UPPER(INDIRECT(CONCATENATE("'",E8,"'!C3"),TRUE)) -> KANALIZACJA DESZCZOWA | E8: kd
B9: =UPPER(INDIRECT(CONCATENATE("'",E9,"'!C3"),TRUE)) -> KANALIZACJA SANITARNA | E9: ks
B10: WODOCIĄG | E10: w
B11: =UPPER(INDIRECT(CONCATENATE("'",E11,"'!C3"),TRUE)) -> GAZOCIĄG | E11: gaz
A12: 4 | B12: BRANŻA ELEKTROENERGETYCZNA
B13: PRZEBUDOWA SIECI ELEKTROENERGETYCZNYCH | E13: En
B14: BUDOWA OŚWIETLENIA DROGOWEGO | E14: Os
B15: =UPPER(INDIRECT(CONCATENATE("'",E15,"'!C3"),TRUE)) -> ZASILANIE OBIEKTÓW | E15: Zasilanie
A16: 5 | B16: BRANŻA TELEKOMUNIKACYJNA | E16: TELETECHNIKA
A17: 6 | B17: BRANŻA MELIORACYJNA | E17: MELIORACJA
B19: SUMA NETTO
B20: VAT 23%
B21: SUMA BRUTTO
A26: ________________ | C26: ______________
A27: miejscowość, data | C27: podpis Wykonawcy

Sheet DROGA
A1: =DANE!B3 -> Aktualizacja i optymalizacja dokumentacji projektowej zadania wraz z pełnieniem nadzoru autorskiego podczas realizacji Inwestycji tj.: ”Rozbudowa drogi wojewódzkiej nr 548 Stolno-Wąbrzeźno od km 0+005 do km 29+619 z wyłączeniem węzła autostradowego w m. Lisewo od km 14+144 do km 15+146” Odcinek nr 2 – od km 15+146 do km 29+619
A2: Branża: | C2: BRANŻA DROGOWA 22.07
A3: Obiekt: | C3: Roboty drogowe
A4: Kod CPV: | C4: 45000000-9 Roboty budowlane w zakresie wznoszenia kompletnych obiektów budowlanych lub ich części oraz roboty w zakresie inżynierii lądowej i wodnej
A5: Poz. | B5: Podstawa wyceny | C5: Wyszczególnienie elementu rozliczeniowego | D5: Jedn. | E5: Ilość jedn. | F5: Cena jedn. | G5: Wartość robót
B6: D.01.00.00 | C6: ROBOTY PRZYGOTOWAWCZE | D6: x | E6: x | F6: x
B7: D.01.01.01 | C7: Wytyczenie trasy i punktów wysokościowych (zgodnie z planem sytuacyjnym) | D7: x | E7: x | F7: x | G7: x
A8: 1 | C8: - DW548, drogi publiczne | D8: km | E8: 15.10
B9: D.01.02.01 | C9: Usunięcie drzew i krzewów | D9: x | E9: x | F9: x
A10: =A8+1 -> 2 | C10: - usunięcie drzew: | D10: x | E10: x | F10: x | G10: x
A11: =A10+1 -> 3 | C11: - drzewa o średnicy do 15 cm | D11: szt. | E11: 3.00
A12: 4 | C12: - drzewa o średnicy 16 ÷ 25 cm | D12: szt. | E12: 17.00
A13: 5 | C13: - drzewa o średnicy 26 ÷ 35 cm | D13: szt. | E13: 2.00
A14: 6 | C14: - usunięcie karpiny | D14: szt. | E14: 64.00
A15: 7 | C15: - wywóz karpiny | D15: szt. | E15: 136.00
A16: 8 | C16: - usunięcie zakrzaczeń | D16: m2 | E16: 4300.00
B17: D.01.02.02 | C17: Zdjęcie humusu | D17: x | E17: x | F17: x | G17: x
A18: =A16+1 -> 9 | C18: - usuniecie warstwy ziemi urodzajnej/humusu | D18: m2 | E18: 87220.00
B19: D.01.02.04 | C19: Rozebranie elementów dróg, ogrodzeń, obiektów kubaturowych | D19: x | E19: x | F19: x
A20: =A18+1 -> 10 | C20: - rozebranie podbudowy z kruszywa łamanego gr. do 55cm | D20: m2 | E20: 50725.00
A21: 11 | C21: - rozebranie warstwy MCE gr.17cm do ponownego wbudowania | D21: m2 | E21: 20951.00
A22: 12 | C22: - rozebranie warstwy kruszywa gr. 20cm | D22: m2 | E22: 2300.00
A23: 13 | C23: - rozebranie warstwy ulepszonego podłoża z gruntu stab.ziarnistym dodatkiem hydrofobowym gr.30cm do ponownego wbudowania | D23: m2 | E23: 20951.00
A24: =A23+1 -> 14 | C24: - rozebranie nawierzchni z kostki betonowej wraz z podbudową z kruszywa łamanego | D24: m2 | E24: 3313.70
A25: 15 | C25: - rozebranie nawierzchni z płyt betonowych chodnikowych | D25: m2 | E25: 527.00
A26: 16 | C26: - rozebranie krawężników betonowych wraz z ławą betonową | D26: mb | E26: 1680.70
A27: 17 | C27: - rozebranie obrzeży chodnikowych wraz z ławą betonową | D27: mb | E27: 1500.70
A28: 18 | C28: - rozebranie nawierzchni z płyt drogowych, żelbetowych | D28: m2 | E28: 146.00
A29: 19 | C29: - rozebranie chodników z betonu asfaltowego gr. 4 cm | D29: m2 | E29: 229.00
A30: 20 | C30: - rozebranie nawierzchni z trylinki | D30: m2 | E30: 357.00
A31: 21 | C31: - rozebranie nawierzchni z płyt kamiennych | D31: m2 | E31: 26.40
A32: 22 | C32: - rozebranie wiat przystankowych, murowanych | D32: kpl | E32: 2.00
A33: 23 | C33: - rozebranie wiaty przystankowej stalowej | D33: kpl | E33: 2.00
A34: 24 | C34: - demontaż tarcz znakow drogowych | D34: szt | E34: 185.00
A35: 25 | C35: - demontaż konstrukcji pod tablice drogowe | D35: szt | E35: 1.00
A36: 26 | C36: - demontaż słupków znakow drogowych | D36: szt | E36: 173.00
A37: 27 | C37: - demontaż słupków hektometrowych | D37: szt | E37: 48.00
A38: 28 | C38: - rozebranie ogrodzeń | D38: mb | E38: 570.00
A39: 29 | C39: - rozebranie wykonanych krawężników betonowych wraz z ławą betonową do ponownego wbudowania do 50% | D39: mb | E39: 2707.00
A40: 30 | C40: - rozebranie wykonanych obrzeży betonowych wraz z ławą betonową do ponownego wbudowania do 50% | D40: mb | E40: 12487.00
A41: 31 | C41: - rozebranie wykonanej nawierzchni z kostki betonowej wraz z podbudową do ponownego wbudowania do 50% | D41: m2 | E41: 682.00
A42: 32 | C42: - rozebranie wykonanej nawierzchni z betonu asfaltowego wraz z podbudową | D42: m2 | E42: 2036.00
A43: 33 | C43: - rozebranie wykonanych ścieków betonowych wraz z ławą betonową do ponownego wbudowania do 50% | D43: mb | E43: 102.00
A44: 34 | C44: - rozebranie wykonanych rowów krytych do ponownego wbudowania do 50% | D44: mb | E44: 1145.00
A45: 35 | C45: - rozebranie zjazdów z nawierzchni kruszywa | D45: m2 | E45: 125.00
A46: 36 | C46: - przestawienie kapliczki | D46: kpl | E46: 1.00
B47: D.02.00.00 | C47: ROBOTY ZIEMNE | D47: x | E47: x | F47: x
B48: D.02.01.01 | C48: Wykonanie wykopów w gruntach kat. I-V. Wykonanie nasypów | D48: x | E48: x | F48: x | G48: x
A49: =A46+1 -> 37 | C49: - wykopy | D49: m3 | E49: 189887.00
A50: 38 | C50: - nasypy | D50: m3 | E50: 42366.00
B51: D.02.03.02 | C51: WZMOCNIENIE GEOSYNTETYKIEM PODŁOŻA I KONSTRUKCJI NASYPU | D51: x | E51: x | F51: x | G51: x
A52: =A50+1 -> 39 | C52: - wykonanie wzmocnienia podłoża i konstrukcji nasypów geosyntetykiem | D52: m2 | E52: 3200.00
B53: D.03.00.00 | C53: ODWODNIENIE KORYTA DROGOWEGO | D53: x | E53: x | F53: x
B54: D.03.05.01 | C54: Drenaż koryta drogowego | D54: x | E54: x | F54: x | G54: x
A55: =A52+1 -> 40 | C55: - wykonanie drenażu rurami PCV d=150mm osłoniętych geowłókniną ciągłą z PP w obsypce z kruszywa 16/31,5mm wraz z armaturą | D55: mb | E55: 654.50
B56: D.04.00.00 | C56: PODBUDOWY | D56: x | E56: x | F56: x
B57: D.04.02.01 | C57: Warstwy zabezpieczające. Warstwa odsączająca / mrozoochronna | D57: x | E57: x | F57: x | G57: x
A58: =A55+1 -> 41 | C58: - wykonanie warstwy odsączającej z mieszanki niezwiązanej gr. 25cm, 0/31,5 (CBR≥40, SE≥35) - zatoki autobusowe, pierścienie ronda, powierzchnie przejezdne i miejsca postojowe | D58: m2 | E58: 2342.81
A59: =A58+1 -> 42 | C59: - wykonanie warstwy odsączającej z mieszanki niezwiązanej gr. 25cm, 0/31,5 (CBR≥40, SE≥35) - drogi boczne | D59: m2 | E59: 6538.46
B60: D.04.02.01a | C60: Podłoże ulepszone z mieszanki niezwiązanej | D60: x | E60: x | F60: x | G60: x
A61: =A59+1 -> 43 | C61: - warstwa grubości 20 cm, 0/31,5 (CBR≥40, SE≥35) - zjazdy publiczne | D61: m2 | E61: 101.23
A62: =A61+1 -> 44 | C62: - warstwa grubości 20 cm, 0/31,5 (CBR≥40, SE≥35) - zjazdy indywidualne | D62: m2 | E62: 14,716.02
A63: 45 | C63: - warstwa grubości 20 cm, 0/31,5 (CBR≥40, SE≥35) - zjazdy do zbiorników | D63: m2 | E63: 473.00
A64: 46 | C64: - warstwa grubości 10 cm, 0/31,5 (CBR≥40, SE≥35) - ciągi piesze | D64: m2 | E64: 7,322.70
A65: 47 | C65: - warstwa grubości 10 cm, 0/31,5 (CBR≥40, SE≥35) - ciągi pieszo-rowerowe na terenie zabudowy | D65: m2 | E65: 8,240.93
A66: 48 | C66: - warstwa grubości 20 cm, 0/31,5 (CBR≥40, SE≥35) - ciągi pieszo-rowerowe na wysokości zjazdów | D66: m2 | E66: 3,119.94
A67: 49 | C67: - warstwa grubości 10 cm, 0/31,5 (CBR≥40, SE≥35) - ciągi pieszo-rowerowe poza terenem zabudowy | D67: m2 | E67: 29,435.18
A68: 50 | C68: - warstwa grubości 10 cm, 0/31,5 (CBR≥40, SE≥35) - wyspy dzielące | D68: m2 | E68: 523.22
B69: D.04.02.01b | C69: Podłoże ulepszone z mieszanki związanej hydraulicznie | D69: x | E69: x | F69: x | G69: x
A70: =A68+1 -> 51 | C70: - warstwa grubości 25 cm (C1,5/2) | D70: m2 | E70: 2,342.81
A71: =A70+1 -> 52 | C71: - warstwa grubości 25 cm (C1,5/2) - drogi boczne | D71: m2 | E71: 6,538.46
B72: D.04.02.01c | C72: Wymiana lub wzmocnienie gruntu | D72: x | E72: x | F72: x | G72: x
A73: =A71+1 -> 53 | C73: - wymiana gruntu na grunt z materiału żwirowo-piaskowego o uziarnieniu 0/12,5 lub wzmocnienie gruntu | D73: m2 | E73: 58765.00
B74: D.04.03.01 | C74: Oczyszczenie i skropienie warstw konstrukcyjnych | D74: x | E74: x | F74: x | G74: x
A75: =A73+1 -> 54 | C75: - warstw konstrukcyjnych niebitumicznych | D75: m2 | E75: 193124.39
A76: 55 | C76: - warstw konstrukcyjnych bitumicznych | D76: m2 | E76: x | F76: x | G76: x
A77: 56 | C77: - warstwa ścieralna | D77: m2 | E77: 165766.00
A78: 57 | C78: - warstwa wiążąca | D78: m2 | E78: 135406.95
A79: 58 | C79: - podbudowa zasadnicza | D79: m2 | E79: 117048.30
B80: D.04.04.02 | C80: Podbudowa z mieszanki z kruszywa niezwiązanego | D80: x | E80: x | F80: x | G80: x
A81: =A79+1 -> 59 | C81: - podbudowa zasadnicza z mieszanki niezwiązanej z kruszywa łamanego stabilizowanego mechanicznie 0/31,5, (CBR≥60, SE≥40) gr. 20cm - zjazdy publiczne | D81: m2 | E81: 92.03
A82: 60 | C82: - podbudowa zasadnicza z mieszanki niezwiązanej z kruszywa łamanego stabilizowanego mechanicznie 0/31,5, (CBR≥60, SE≥40) gr. 20cm - zjazdy indywidualne | D82: m2 | E82: 3286.80
A83: 61 | C83: - podbudowa zasadnicza z mieszanki niezwiązanej z kruszywa łamanego stabilizowanego mechanicznie 0/31,5, (CBR≥60, SE≥40) gr. 22cm - zjazdy indywidualne | D83: m2 | E83: 10091.40
A84: 61.1. | C84: - podbudowa zasadnicza z mieszanki niezwiązanej z kruszywa łamanego stabilizowanego mechanicznie 0/31,5, (CBR≥60, SE≥40) gr. 22cm - zjazdy publiczne | D84: m2 | E84: 39.44
A85: =A83+1 -> 62 | C85: - podbudowa z mieszanki niezwiązanej z kruszywa łamanego stabilizowanego mechanicznie 0/31,5, (CBR≥60, SE≥40) gr. 20cm - zjazdy do zbiorników | D85: m2 | E85: 473.00
A86: 63 | C86: - podbudowa z mieszanki niezwiązanej z kruszywa łamanego stabilizowanego mechanicznie 0/31,5, (CBR≥40, SE≥35) gr. 15cm - ciągi piesze | D86: m2 | E86: 6974.00
A87: 64 | C87: - podbudowa z mieszanki niezwiązanej z kruszywa łamanego stabilizowanego mechanicznie 0/31,5, (CBR≥40, SE≥35) gr. 15cm - ciągi pieszo-rowerowe na terenie zabudowy | D87: m2 | E87: 7848.50
A88: 65 | C88: - podbudowa z mieszanki niezwiązanej z kruszywa łamanego stabilizowanego mechanicznie 0/31,5, (CBR≥60, SE≥40) gr. 20cm - ciągi pieszo-rowerowe na wysokości zjazdów | D88: m2 | E88: 1569.70
A89: =A87+1 -> 65 | C89: - podbudowa z mieszanki niezwiązanej z kruszywa łamanego stabilizowanego mechanicznie 0/31,5, (CBR≥60, SE≥40) gr. 26cm - ciągi pieszo-rowerowe na wysokości zjazdów | D89: m2 | E89: 1401.68
A90: =A89+1 -> 66 | C90: - podbudowa z mieszanki niezwiązanej z kruszywa łamanego stabilizowanego mechanicznie 0/31,5, (CBR≥40, SE≥35) gr. 20cm - ciągi pieszo-rowerowe poza terenem zabudowy | D90: m2 | E90: 28033.50
A91: 67 | C91: - podbudowa z mieszanki niezwiązanej z kruszywa łamanego stabilizowanego mechanicznie 0/31,5, (CBR≥40, SE≥35) gr. 15cm - wyspy dzielące | D91: m2 | E91: 498.30
A92: 68 | C92: - podbudowa z mieszanki niezwiązanej z kruszywa łamanego stabilizowanego mechanicznie 0/31,5, (CBR≥40, SE≥35) gr. 25cm - zatoki autobusowe, powierzchnie przejezdne, pierścienie rond i miejsca postojowe | D92: m2 | E92: 4685.63
A93: 69 | C93: - podbudowa z mieszanki niezwiązanej z kruszywa łamanego stabilizowanego mechanicznie 0/31,5, (CBR≥60, SE≥40) gr. 20cm - drogi boczne | D93: m2 | E93: 12454.20
B94: D.04.04.02a. | C94: Podbudowa z mieszanki mineralno-cementowo-emulsyjnej | D94: x | E94: x | F94: x | G94: x
A95: =A93+1 -> 70 | C95: - warstwa grubości 17 cm | D95: m2 | E95: 94684.70
A96: =A95+1 -> 71 | C96: - warstwa grubości 17 cm z materiału z odzysku | D96: m2 | E96: 10475.50
B97: D.04.06.01 | C97: Podbudowa z mieszanki związanej cementem C8/10 gr.25cm | D97: x | E97: x | F97: x | G97: x
A98: =A96+1 -> 72 | C98: - w-wa podbudowygr. 25cm - zatoki autobusowe, pierścienie ronda, powierzchnie przejezdne i miejsca postojowe | D98: m2 | E98: 4462.50
B99: D.04.07.01 | C99: Podbudowa bitumiczna. Podbudowa z betonu asfaltowego AC | D99: x | E99: x | F99: x | G99: x
A100: =A98+1 -> 73 | C100: - w-wa podbudowy zasadniczej AC16P 50/70, gr. 8 cm drogi boczne KR2 | D100: m2 | E100: 11888.10
B101: D.04.12.01 | C101: Warstwa ulepszonego podłoża | D101: x | E101: x | F101: x | G101: x
A102: =A100+1 -> 74 | C102: - warstwa ulepszonego podłoża z gruntu stab.ziarnistym dodatkiem hydrofobowym gr.30cm z doziarnieniem i osuszeniem | D102: m2 | E102: 104153.17
A103: =A102+1 -> 75 | C103: - warstwa ulepszonego podłoża z gruntu stab.ziarnistym dodatkiem hydrofobowym gr.30cm z materiału z odzysku | D103: m2 | E103: 11523.05
B104: D.05.00.00 | C104: NAWIERZCHNIE | D104: x | E104: x | F104: x
A105: =A103+1 -> 76 | B105: D.05.02.01 | C105: Warstwa wiążąca z betonu asfaltowego AC 16W | D105: x | E105: x | F105: x | G105: x
A106: =A105+1 -> 77 | C106: - warstwa wiążąca AC 16W PMB 45/80-65 grubości 8 cm DW 548 | D106: m2 | E106: 125774.25
A107: =A106+1 -> 78 | C107: - warstwa wiążąca AC 16W grubości 5 cm zjazdy | D107: m2 | E107: 9632.70
B108: D.05.03.01 | C108: Nawierzchnia z betonu cementowego dyblowana i kotwiona gr.20cm | D108: x | E108: x | F108: x | G108: x
A109: =A107+1 -> 79 | C109: - nawierzchnia zatok autobusowych | D109: m2 | E109: 2265.00
A110: =A109+1 -> 80 | C110: - nawierzchnia miejsc postojowych | D110: m2 | E110: 950.00
A111: =A110+1 -> 81 | C111: - nawierzchnia powierzchni przejezdnych w rejonie skrzyżowań | D111: m2 | E111: 394.00
A112: 82 | C112: - nawierzchnia pierścienia ronda | D112: m2 | E112: 641.00
B113: D.05.03.03. | C113: Nawierzchnia z płyt betonowych | D113: x | E113: x | F113: x | G113: x
A114: =A112+1 -> 83 | C114: - nawierzchnia z płyt betonowych typu IOMB 12x75x100cm a w-wie stabilizacji RM 1,5-2,5MPa wypełnioną mieszanką niezwiązaną 0/8 | D114: m2 | E114: 430.00
B115: D.05.03.05a | C115: Nawierzchnia z betonu asfaltowego AC 11S | D115: x | E115: x | F115: x | G115: x
A116: =A114+1 -> 84 | C116: - ciągi pieszo-rowerowe poza terenem zabudowy, grubośc warstwy 5 cm | D116: m2 | E116: 25485.00
A117: =A116+1 -> 85 | C117: - warstwa ścieralna z BA gr. 4 cm drogi boczne KR2 | D117: m2 | E117: 11322.00
A118: =A117+1 -> 86 | C118: - warstwa ścieralna z BA gr. 4 cm zjazdy | D118: m2 | E118: 9174.00
B119: D.05.03.11 | C119: Frezowanie nawierzchni asfaltowej na zimno | D119: x | E119: x | F119: x | G119: x
A120: =A118+1 -> 87 | C120: - frezowanie nawierzchni asfaltowej na zimno gr.średnio 5cm | D120: m2 | E120: 33708.00
A121: =A120+1 -> 88 | C121: - frezowanie nawierzchni asfaltowej na zimno gr.średnio 10cm | D121: m2 | E121: 34818.00
A122: =A121+1 -> 89 | C122: - frezowanie nawierzchni asfaltowej na zimno gr.średnio 25cm | D122: m2 | E122: 44691.00
B123: D.05.03.13a. | C123: Warstwa ścieralna z mieszanki mineralno-asfaltowej SMA | D123: x | E123: x | F123: x | G123: x
A124: =A122+1 -> 90 | C124: - warstwa ścieralna SMA 8 PMB 45/80-65 gr. 4 cm DW 548 KR4 | D124: m2 | E124: 119785.00
B125: D.05.03.23 | C125: Nawierzchnia z betonowej kostki brukowej | D125: x | E125: x | F125: x | G125: x
A126: =A124+1 -> 91 | C126: - nawierzchnia z kostki betonowej gr. 8 cm, czerwonej, układanej na w-wie stabilizacji RM 1,5-2,5MPa gr. 3 cm - zjazdy indywidualne | D126: m2 | E126: 2,988.00
A127: =A126+1 -> 92 | C127: - nawierzchnia z kostki betonowej gr. 8 cm, czerwonej, układanej na w-wie stabilizacji RM 1,5-2,5MPa gr. 3 cm - zjazdy publiczne | D127: m2 | E127: 119.52
A128: =A127+1 -> 93 | C128: - nawierzchnia z kostki betonowej bezfazowej gr. 8 cm, szarej, układanej na podsypce z mieszanki niezwiązanej 0/4 gr. 3 cm - ciag pieszo-rowerowy | D128: m2 | E128: 7,135.00
A129: 94 | C129: - nawierzchnia z kostki betonowej gr. 8 cm, szarej, układanej na podsypce z mieszanki niezwiązanej 0/4 gr. 3 cm - ciag pieszy | D129: m2 | E129: 6,340.00
A130: 95 | C130: - nawierzchnia z kostki betonowej gr. 8 cm,kolor, układanej na podsypce z mieszanki niezwiązanej 0/4 gr. 3 cm - wyspy dzielące | D130: m2 | E130: 453.00
A131: 96 | C131: - nawierzchnia z kostki betonowej gr. 8 cm, z wypustkami (integracyjnej), układanej na podsypce z mieszanki niezwiązanej 0/4 gr. 3 cm | D131: m2 | E131: 144.00
A132: 97 | C132: - nawierzchnia z kostki betonowej gr. 8 cm, szarej, układanej na podsypce z mieszanki niezwiązanej 0/4 gr. 3 cm z materiału z odzysku | D132: m2 | E132: 341.00
A133: 98 | C133: - nawierzchnia z kostki betonowej bezfazowejgr. 8 cm, szarej, układanej na podsypce z mieszanki niezwiązanej 0/4 gr. 3 cm z materiału z odzysku | D133: m2 | E133: 170.50
A134: 99 | C134: - nawierzchnia z kostki betonowej gr. 8 cm, czerwonej, układanej na w-wie stabilizacji RM 1,5-2,5MPa gr. 3 cm z materiału z odzysku | D134: m2 | E134: 341.00
B135: D.05.04.02 | C135: Połączenie konstrukcji nowej nawierzchni z istniejącą | D135: x | E135: x | F135: x | G135: x
A136: =A134+1 -> 100 | C136: - powiązanie z drogami istniejącymi - siatka szklana | D136: m2 | E136: 504.00
B137: D.06.00.00 | C137: ROBOTY WYKOŃCZENIOWE | D137: x | E137: x | F137: x
B138: D.06.01.01 | C138: Umocnienie powierzchniowe skarp, rowów i ścieków | D138: x | E138: x | F138: x | G138: x
A139: =A136+1 -> 101 | C139: - humusowanie wraz z obsianiem 10cm (skarpy) | D139: m2 | E139: 152699.00
A140: =A139+1 -> 102 | C140: - humusowanie wraz z obsianiem gr. 10cm (tereny zielone w pasie drogowym) | D140: m2 | E140: 15100.00
B141: D.06.02.01 | C141: - umocnienie skarp płytami betonowymi | D141: x | E141: x | F141: x | G141: x
A142: =A140+1 -> 103 | C142: - wzmocnienie powierzchniowe płytami ażurowymi | D142: m2 | E142: 1735.00
B143: D.06.03.01 | C143: Pobocze gruntowe z mieszanki niezwiązanej z kruszywa łamanego stabilizowanego mechanicznie 0/31,5, grubość warstwy 15cm | D143: x | E143: x | F143: x | G143: x
A144: =A142+1 -> 104 | C144: - DW548, drogi boczne | D144: m2 | E144: 51340.00
A145: 105 | C145: - zjazdy indywidualne, zjazdy publiczne | D145: m2 | E145: 1793.00
B146: D.07.00.00 | C146: URZĄDZENIA BEZPIECZEŃSTWA RUCHU | D146: x | E146: x | F146: x
B147: D.07.01.01 | C147: Oznakowanie poziome | D147: x | E147: x | F147: x | G147: x
A148: =A145+1 -> 106 | C148: Oznakowanie poziome jezdni grubowarstwową chemoutwardzalną akrylową do stosowania na zimno -linie segregacyjne i krawędziowe ciągłe malowane mechanicznie-grubość farby 4,0mm z wytyczeniem | D148: m2 | E148: 3743.16
A149: 107 | C149: Oznakowanie poziome grubowarstwową chemoutwardzalną akrylową do stosowania na zimno linie segregacyjne i krawędziowe przerywane malowane mechanicznie grubość 4,0mm z wytyczeniem | D149: m2 | E149: 1374.39
A150: 108 | C150: Oznakowanie poziome grubowarstwową chemoutwardzalną akrylową do stosowania na zimno , linie na skrzyżowaniach i przejściach dla pieszych malowane ręcznie- 4,0mm z wytyczeniem | D150: m2 | E150: 1138.73
A151: 109 | C151: Oznakowanie poziome jezdni grubowarstwową chemoutwardzalną akrylową do stosowania na zimno strzałki i inne symbole malowane ręcznie - 4,0mm z wytyczeniem | D151: m2 | E151: 883.30
A152: 110 | C152: Oznakowanie poziome jezdni cienkowarstwowe - oznakowanie przejazdu rowerowego - kolor czerwony | D152: m2 | E152: 189.00
A153: 111 | C153: Oznakowanie poziome parkingu - oznakowanie miejsca postojowego - kolor niebieski | D153: m2 | E153: 34.20
A154: 112 | C154: Montaż punktowych elementów odblaskowych typu:PEO-1, PEO-5, PEO-7 | D154: szt | E154: 2048.00
B155: D.07.02.01 | C155: Oznakowanie pionowe i konstrukcje wsporcze | D155: x | E155: x | F155: x | G155: x
A156: =A154+1 -> 113 | C156: Montaż słupków stalowych ocynkowanych | D156: szt. | E156: 456.00
A157: 114 | C157: Montaż słupków stalowych ocynkowanych wg projektu pod co najmniej dwa znaki | D157: szt. | E157: 98.00
A158: 115 | C158: Montaż konstrukcjiwsporczych pod tablice drogowskazowe | D158: szt. | E158: 23.00
A159: 116 | C159: Pionowe znaki drogowe - znaki zakazu, nakazu, ostrzegawcze i informacyjne o pow. do 0.3 m2 | D159: szt. | E159: 553.00
A160: 117 | C160: Pionowe znaki drogowe - znaki typu E tablice drogowskazowe o pow. pow 0.3 m3 | D160: szt. | E160: 34.00
A161: 118 | C161: Słupek przeszkodowy U-5a w gniazdach RS | D161: szt | E161: 10.00
A162: 119 | C162: Słupek przeszkodowy C-9+U-5 w gniazdach RS | D162: szt | E162: 12.00
A163: 120 | C163: Tablice kierujące U-6a w gniazdach RS | D163: szt | E163: 30.00
A164: =A163+1 -> 121 | B164: D.07.02.02 | C164: Słupki prowadzące i krawędziowe | D164: szt | E164: 255.00
B165: D.07.05.01 | C165: Bariery ochronne stalowe | D165: x | E165: x | F165: x | G165: x
A166: =A164+1 -> 122 | C166: - N2/W3/A | D166: mb | E166: 1125.00
A167: =A166+1 -> 123 | C167: - N2/W3/A z poręczą | D167: mb | E167: 118.00
B168: D.07.06.03 | C168: Urządzenia zabezpieczające ruch pieszych. Balustrady dla pieszych | D168: x | E168: x | F168: x | G168: x
A169: =A167+1 -> 124 | C169: - U-12 | D169: mb | E169: 2011.00
A170: 124.1 | C170: - U-11 | D170: mb | E170: 4000.00
B171: D.08.00.00 | C171: ELEMENTY ULIC | D171: x | E171: x | F171: x
B172: D.08.01.01 | C172: Krawężniki betonowe na ławie betonowej | D172: x | E172: x | F172: x | G172: x
A173: =A169+1 -> 125 | C173: - krawężnik betonowy 20x30x100 | D173: mb | E173: 7,700.00
A174: 126 | C174: - krawężnik betonowy obniżony 4 cm 20x22x100 | D174: mb | E174: 1,678.00
A175: 127 | C175: - krawężnik betonowy obniżony 0 cm 12x25x100 | D175: mb | E175: 1,230.00
A176: 128 | C176: - krawężniki betonowe z materiału z odzysku | D176: mb | E176: 1,353.50
B177: D.08.01.02 | C177: Krawężniki kamienne na ławie betonowej | D177: x | E177: x | F177: x | G177: x
A178: =A176+1 -> 129 | C178: - krawężnik kamienny obniżony 20x22x100 | D178: mb | E178: 499.00
B179: D.08.02.01 | C179: Betonowe obrzeża chodnikowe na ławie betonowej | D179: x | E179: x | F179: x | G179: x
A180: =A178+1 -> 130 | C180: - betonowe obrzeża chodnikowe 8x30x100 cm na ławie betonowej | D180: mb | E180: 23590.00
A181: =A180+1 -> 131 | C181: - betonowe obrzeża chodnikowe z materiału z odzysku | D181: mb | E181: 6243.50
B182: D.08.03.01 | C182: Palisada betonowa | D182: x | E182: x | F182: x | G182: x
A183: =A181+1 -> 132 | C183: - betonowa palisada 18x18x120cm | D183: mb | E183: 56.00
B184: D.08.05.01 | C184: Ścieki korytkowe z prefabrykowanych elementów betonowych | D184: x | E184: x | F184: x | G184: x
A185: =A183+1 -> 133 | C185: - ściek muldowy 50x60x15 | D185: mb | E185: 2089.00
A186: =A185+1 -> 134 | C186: - ściek muldowy 50x60x15 z materiału z odzysku | D186: mb | E186: 50.00
A187: =A186+1 -> 135 | C187: - ściek korytkowy kolejowy 60x70x75 | D187: mb | E187: 181.00
A188: =A187+1 -> 136 | B188: D.08.05.02 | C188: Ścieki skarpowe z prefabrykowanych elementów betonowych | D188: mb | E188: 56.00
A189: =A188+1 -> 137 | B189: D.08.05.03. | C189: Ścieki z brukowej kostki betonowej | D189: mb | E189: 1,621.00
B190: D.09.00.00 | C190: ZIELEŃ DROGOWA | D190: x | E190: x | F190: x
B191: D.09.01.01 | C191: Nasadzenia | D191: x | E191: x | F191: x | G191: x
A192: =A189+1 -> 138 | C192: - klon | D192: szt. | E192: 30.00
A193: =A192+1 -> 139 | C193: - jesion | D193: szt. | E193: 182.00
A194: 140 | C194: - grab | D194: szt. | E194: 959.00
A195: 141 | C195: - lipa | D195: szt. | E195: 820.00
A196: 142 | C196: - dąb | D196: szt. | E196: 4.00
A197: 143 | C197: - kasztanowiec | D197: szt. | E197: 5.00
A198: 144 | C198: - buk | D198: szt. | E198: 3.00
B199: D.10.00.00 | C199: INNE ROBOTY | D199: x | E199: x | F199: x
B200: D.10.01.01 | C200: Ogrodzenia | D200: x | E200: x | F200: x | G200: x
... 8 more rows

Sheet Roboty inżynieryjne
A1: =[1]DANE!B3 -> Aktualizacja i optymalizacja dokumentacji projektowej zadania wraz z pełnieniem nadzoru autorskiego podczas realizacji Inwestycji tj.: ”Rozbudowa drogi wojewódzkiej nr 548 Stolno-Wąbrzeźno od km 0+005 do km 29+619 z wyłączeniem węzła autostradowego w m. Lisewo od km 14+144 do km 15+146” Odcinek nr 2 – od km 15+146 do km 29+619
A2: ROBOTY INŻYNIERYJNE 22.07
A3: L.p. | B3: Numer STWiORB | C3: Wyszczególnienie elementu rozliczeniowego | D3: Jednostka | F3: Cena jednostkowa | G3: Wartość robót
D4: Nazwa | E4: Ilość
A5: PRZEPUST KM 17+558,30
B6: M.01.00.00. | C6: Roboty przygotowawcze | D6: x | E6: x | F6: x | G6: x
B7: M.01.01.00. | C7: Obsługa geodezyjna budowy | D7: x | E7: x | F7: x | G7: x
A8: 1 | B8: M.01.01.01. | C8: Wytyczenie drogowego obiektu inżynierskiego | D8: kpl | E8: 1.00
B9: M.11.00.00. | C9: Fundamentowanie | D9: x | E9: x | F9: x | G9: x
B10: M.11.01.00. | C10: Roboty ziemne | D10: x | E10: x | F10: x | G10: x
A11: =A8+1 -> 2 | B11: M.11.01.03. | C11: Wykopy pod fundamenty w gruncie spoistym z czasowym zabezpieczeniem | D11: m3 | E11: 1,388.46
B12: M.11.01.05. | C12: Zasypanie wykopów fundamentowych oraz przestrzeni wokół przepustów wraz z zagęszczeniem | D12: x | E12: x | F12: x | G12: x
A13: =A11+1 -> 3 | C13: - fundament kruszywowy | D13: m3 | E13: 71.34
A14: =A13+1 -> 4 | C14: - geotkanina polipropylenowa | D14: m2 | E14: 277.24
A15: =A14+1 -> 5 | C15: - zasypka inżynierska przepustu | D15: m3 | E15: 374.05
A16: =A15+1 -> 6 | C16: - zasypanie wykopu wraz z zagęszczeniem | D16: m3 | E16: 812.06
B17: M.20.00.00. | C17: Inne roboty mostowe | D17: x | E17: x | F17: x | G17: x
B18: M.20.01.03. | C18: Umocnienie stożków i skarp | D18: x | E18: x | F18: x | G18: x
A19: =A16+1 -> 7 | C19: - umocnienie brukiem kamiennym na zaprawie cementowo piaskowej | D19: m2 | E19: 30.80
A20: =A19+1 -> 8 | B20: M.20.01.10. | C20: Umocnienie dna i skarp cieku | D20: m2 | E20: 176.00
B21: M.20.01.12. | C21: Wygrodzenia dla płazów | D21: x | E21: x | F21: x | G21: x
A22: =A20+1 -> 9 | C22: - kładka dla zwierząt | D22: szt. | E22: 3.00
B23: M.20.01.15 | C23: Przepusty z blachy falistej | D23: x | E23: x | F23: x | G23: x
A24: =A22+1 -> 10 | C24: - rura stalowa d=2100 mm | D24: m | E24: 32.18
A25: =A24+1 -> 11 | C25: - stalowa półka dla zwierząt szer. 0,5 m | D25: m | E25: 64.36
A26: =A25+1 -> 12 | C26: - element złazowy półki dla zwierząt szer. 0,5 m | D26: m | E26: 4.00
A27: PRZEPUST KM 19+543,00
B28: M.01.00.00. | C28: Roboty przygotowawcze | D28: x | E28: x | F28: x | G28: x
B29: M.01.01.00. | C29: Obsługa geodezyjna budowy | D29: x | E29: x | F29: x | G29: x
A30: =A26+1 -> 13 | B30: M.01.01.01. | C30: Wytyczenie drogowego obiektu inżynierskiego | D30: kpl | E30: 1.00
B31: M.11.00.00. | C31: Fundamentowanie | D31: x | E31: x | F31: x | G31: x
B32: M.11.01.00. | C32: Roboty ziemne | D32: x | E32: x | F32: x | G32: x
A33: =A30+1 -> 14 | B33: M.11.01.03. | C33: Wykopy pod fundamenty w gruncie spoistym z czasowym zabezpieczeniem | D33: m3 | E33: 513.05
B34: M.11.01.05. | C34: Zasypanie wykopów fundamentowych oraz przestrzeni wokół przepustów wraz z zagęszczeniem | D34: x | E34: x | F34: x | G34: x
A35: =A33+1 -> 15 | C35: - fundament kruszywowy | D35: m3 | E35: 43.23
A36: =A35+1 -> 16 | C36: - geotkanina polipropylenowa | D36: m2 | E36: 169.31
A37: =A36+1 -> 17 | C37: - zasypka inżynierska przepustu | D37: m3 | E37: 228.20
A38: =A37+1 -> 18 | C38: - zasypanie wykopu wraz z zagęszczeniem | D38: m3 | E38: 85.39
B39: M.20.00.00. | C39: Inne roboty mostowe | D39: x | E39: x | F39: x | G39: x
B40: M.20.01.03. | C40: Umocnienie stożków i skarp | D40: x | E40: x | F40: x | G40: x
A41: =A38+1 -> 19 | C41: - umocnienie brukiem kamiennym na zaprawie cementowo piaskowej | D41: m2 | E41: 33.68
A42: =A41+1 -> 20 | B42: M.20.01.10. | C42: Umocnienie dna i skarp cieku | D42: m2 | E42: 286.00
B43: M.20.01.15. | C43: Przepusty z blachy falistej | D43: x | E43: x | F43: x | G43: x
A44: =A42+1 -> 21 | C44: - rura stalowa d=1700 mm | D44: m | E44: 22.51
A45: PRZEPUST KM 26+735,50
B46: M.01.00.00. | C46: Roboty przygotowawcze | D46: x | E46: x | F46: x | G46: x
B47: M.01.01.00. | C47: Obsługa geodezyjna budowy | D47: x | E47: x | F47: x | G47: x
A48: =A44+1 -> 22 | B48: M.01.01.01. | C48: Wytyczenie drogowego obiektu inżynierskiego | D48: kpl | E48: 1.00
B49: M.11.00.00. | C49: Fundamentowanie | D49: x | E49: x | F49: x | G49: x
B50: M.11.01.00. | C50: Roboty ziemne | D50: x | E50: x | F50: x | G50: x
A51: =A48+1 -> 23 | B51: M.11.01.03. | C51: Wykopy pod fundamenty w gruncie spoistym z czasowym zabezpieczeniem | D51: m3 | E51: 1,598.27
B52: M.11.01.05. | C52: Zasypanie wykopów fundamentowych oraz przestrzeni wokół przepustów wraz z zagęszczeniem | D52: x | E52: x | F52: x | G52: x
A53: =A51+1 -> 24 | C53: - fundament kruszywowy | D53: m3 | E53: 50.56
A54: =A53+1 -> 25 | C54: - geotkanina polipropylenowa | D54: m2 | E54: 261.68
A55: =A54+1 -> 26 | C55: - zasypka inżynierska przepustu | D55: m3 | E55: 343.75
A56: =A55+1 -> 27 | C56: - zasypanie wykopu wraz z zagęszczeniem | D56: m3 | E56: 662.22
B57: M.20.00.00. | C57: Inne roboty mostowe | D57: x | E57: x | F57: x | G57: x
B58: M.20.01.03. | C58: Umocnienie stożków i skarp | D58: x | E58: x | F58: x | G58: x
A59: =A56+1 -> 28 | C59: - umocnienie brukiem kamiennym na zaprawie cementowo piaskowej | D59: m2 | E59: 26.58
A60: =A59+1 -> 29 | B60: M.20.01.10. | C60: Umocnienie dna i skarp cieku | D60: m2 | E60: 520.30
B61: M.20.01.12. | C61: Wygrodzenia dla płazów | D61: x | E61: x | F61: x | G61: x
A62: =A60+1 -> 30 | C62: - kładka dla zwierząt | D62: szt. | E62: 2.00
B63: M.20.01.15. | C63: Przepusty z blachy falistej | D63: x | E63: x | F63: x | G63: x
A64: =A62+1 -> 31 | C64: - rura stalowa d=2100 mm | D64: m | E64: 31.47
A65: =A64+1 -> 32 | C65: - sStalowa półka dla zwierząt szer. 0,5 m | D65: m | E65: 62.94
A66: =A65+1 -> 33 | C66: - element złazowy półki dla zwierząt szer. 0,5 m | D66: m | E66: 4.00
A67: Przepusty rurowe
B68: M.01.00.00. | C68: Roboty przygotowawcze | D68: x | E68: x | F68: x | G68: x
B69: M.01.01.00. | C69: Obsługa geodezyjna budowy | D69: x | E69: x | F69: x | G69: x
A70: =A66+1 -> 34 | B70: M.01.01.01. | C70: Wytyczenie drogowego obiektu inżynierskiego | D70: kpl | E70: 216.00
B71: M.11.00.00. | C71: Fundamentowanie | D71: x | E71: x | F71: x | G71: x
B72: M.11.01.00. | C72: Roboty ziemne | D72: x | E72: x | F72: x | G72: x
A73: =A70+1 -> 35 | B73: M.11.01.03. | C73: Wykopy pod fundamenty w gruncie spoistym z czasowym zabezpieczeniem | D73: m3 | E73: 23,240.80
B74: M.11.01.05. | C74: Zasypanie wykopów fundamentowych oraz przestrzeni wokół przepustów wraz z zagęszczeniem | D74: x | E74: x | F74: x | G74: x
A75: =A73+1 -> 36 | C75: - podbudowa z pospółki gr. 15 cm | D75: m3 | E75: 559.20
A76: =A75+1 -> 37 | C76: - zasypka żwirowa przepustu | D76: m3 | E76: 21,367.50
B77: M.13.00.00. | C77: Beton | D77: x | E77: x | F77: x | G77: x
B78: M.13.01.00. | C78: Beton konstrukcyjny | D78: x | E78: x | F78: x | G78: x
A79: =A76+1 -> 38 | C79: - beton fundamentów przepustu C30/37 | D79: m3 | E79: 123.20
B80: M.20.00.00. | C80: Inne roboty mostowe | D80: x | E80: x | F80: x | G80: x
B81: M.20.01.03. | C81: Umocnienie stożków i skarp | D81: x | E81: x | F81: x | G81: x
A82: =A79+1 -> 39 | C82: - umocnienie brukiem kamiennym | D82: m2 | E82: 4,231.70
B83: M.20.01.06 | C83: Przepusty z rur PEHD | D83: x | E83: x | F83: x | G83: x
A84: =A82+1 -> 40 | C84: - przepusty z rur PEHD d=400mm | D84: m | E84: 1,637.00
A85: =A84+1 -> 41 | C85: - przepusty z rur PEHD d=500mm | D85: m | E85: 19.00
A86: =A85+1 -> 42 | C86: - przepusty z rur PEHD d=600mm | D86: m | E86: 256.00
A87: 43 | C87: - przepusty z rur PEHD d=800mm | D87: m | E87: 614.00
A88: 44 | C88: - przepusty z rur PEHD d=1000mm | D88: m | E88: 33.00
A89: 45 | C89: - przepusty z rur PEHD d=1200mm | D89: m | E89: 29.00
A90: 46 | B90: M.20.01.10. | C90: Umocnienie dna i skarp cieku | D90: m2 | E90: 6,011.50
C91: ROZBIÓRKA ISTNIEJĄCYCH PRZEPUSTÓW | D91: x | E91: x | F91: x | G91: x
B92: M.21.00.00. | C92: Roboty rozbiórkowe i remontowe | D92: x | E92: x | F92: x | G92: x
B93: M.21.01.03. | C93: Rozbiórka elementów betonowych, żelbetowych i ceglanych | D93: x | E93: x | F93: x | G93: x
A94: =A90+1 -> 47 | C94: - rozbiórka przepustów z cegły | D94: m3 | E94: 124.70
A95: =A94+1 -> 48 | C95: - rozbiórka przepustów rurowych | D95: m | E95: 136.00
A96: =A95+1 -> 49 | C96: - rozbiórka konstrukcji żelbetowych przepustów | D96: m3 | E96: 208.64
A97: =A96+1 -> 50 | C97: - rozbiórka konstrukcji kamiennych przepustów | D97: m3 | E97: 96.03
C98: Rozbiórka przepustów rurowych wykonywanych w ramach poprzedniego kontraktu | D98: x | E98: x | F98: x | G98: x
A99: =A97+1 -> 51 | C99: - przepusty z rur PEHD d=500mm | D99: m | E99: 795.00
A100: =A99+1 -> 52 | C100: - przepusty z rur PEHD d=600mm | D100: m | E100: 173.00
A101: =A100+1 -> 53 | C101: - przepusty z rur PEHD d=800mm | D101: m | E101: 300.00
A102: 54 | C102: - przepusty z rur PEHD d=1000mm | D102: m | E102: 25.00
B103: RAZEM ROBOTY INŻYNIERYJNE
B105: ________________ | D105: ______________
B106: miejscowość, data | D106: podpis Wykonawcy

Sheet KD
A1: =DANE!B3 -> Aktualizacja i optymalizacja dokumentacji projektowej zadania wraz z pełnieniem nadzoru autorskiego podczas realizacji Inwestycji tj.: ”Rozbudowa drogi wojewódzkiej nr 548 Stolno-Wąbrzeźno od km 0+005 do km 29+619 z wyłączeniem węzła autostradowego w m. Lisewo od km 14+144 do km 15+146” Odcinek nr 2 – od km 15+146 do km 29+619
A2: Branża: | C2: BRANŻA SANITARNA 22.07
A3: Obiekt: | C3: Kanalizacja Deszczowa
A4: Kod CPV: | C4: 45000000-9 Roboty budowlane w zakresie wznoszenia kompletnych obiektów budowlanych lub ich części oraz roboty w zakresie inżynierii lądowej i wodnej
A5: Poz. | B5: Podstawa wyceny | C5: Wyszczególnienie elementu rozliczeniowego | D5: Jedn. | E5: Ilość jedn. | F5: Cena jedn. | G5: Wartość robót
B6: U.01.01.01 | C6: ODWODNIENIE KORPUSU DROGOWEGO | D6: x | E6: x | F6: x | G6: x
A7: 1 | B7: U.01.01.01 | C7: Budowa kanalizacji deszczowej | D7: x | E7: x | F7: x | G7: x
A8: 2 | B8: U.01.01.01 | C8: - ciąg główny kanalizacji | D8: x | E8: x | F8: x | G8: x
A9: 3 | B9: U.01.01.01 | C9: - wykonanie wykopów liniowych dla budowy kanałów głównych | D9: m3 | E9: 544.00
A10: 4 | B10: U.01.01.01 | C10: - pełne umocnienie pionowych ścian wykopów liniowych | D10: m2 | E10: 680.00
A11: 5 | B11: U.01.01.01 | C11: - podsypka i obsypka piaskowa | D11: m3 | E11: 181.00
A12: 6 | B12: U.01.01.01 | C12: - montaż kanałów z rur PCV d=315 SN8 | D12: m | E12: 174.00
B13: U.01.01.01 | C13: - montaż kanałów z rur VIPRO d=600mm | D13: m | E13: 2022.00
A14: 7 | B14: U.01.01.01 | C14: - montaż kanałów z rur VIPRO d=800mm | D14: m | E14: 15.00
A15: 8 | B15: U.01.01.01 | C15: - zasypanie wykopów liniowych z zagęszczeniem | D15: m3 | E15: 363.00
A16: 9 | B16: U.01.01.01 | C16: - zabudowa studni z kregów betonowych d=1200mm | D16: kpl | E16: 21.00
A17: 10 | B17: U.01.01.01 | C17: - zabudowa studni wpadowych z kregów betonowych d=1400mm | D17: kpl | E17: 1.00
A18: 11 | B18: U.01.01.01 | C18: Studzienka rozprężna 1200 | D18: szt. | E18: 1.00
A19: 12 | B19: U.01.01.01 | C19: - montaż rurociagu tłocznego z rur PEHD SDR11 PN16 Dz160 | D19: mb | E19: 21.00
A20: 13 | B20: U.01.01.01 | C20: - ułożenie rur osłonowych PE100 SDR17 Dz315 | D20: mb | E20: 12.00
A21: 14 | B21: U.01.01.01 | C21: Wylot do rowy DN315 | D21: szt. | E21: 1.00
A22: 15 | B22: U.01.01.01 | C22: - przykanaliki i wpusty | D22: x | E22: x | F22: x | G22: x
A23: 16 | B23: U.01.01.01 | C23: - wykonanie wykopów liniowych dla budowy przykanalików | D23: m3 | E23: 1088.40
A24: 17 | B24: U.01.01.01 | C24: - pełne umocnienie pionowych ścian wykopów liniowych | D24: m2 | E24: 1360.50
A25: 18 | B25: U.01.01.01 | C25: - podsypka piaskowa, grubości 10 cm | D25: m3 | E25: 72.56
A26: 19 | B26: U.01.01.01 | C26: - montaż kanałów z rur PCV d=200mm SN8 | D26: m | E26: 907.00
A27: 20 | B27: U.01.01.01 | C27: - montaż kanałów z rur PCV d=200mm SN12 | D27: m | E27: 574.00
A28: 21 | B28: U.01.01.01 | C28: - obsypka piaskowa kanałów - 30cm nad wierzch rur | D28: m3 | E28: 333.78
A29: 22 | B29: U.01.01.01 | C29: - zasypanie wykopów liniowych z zagęszczeniem | D29: m3 | E29: 682.06
A30: 23 | B30: U.01.01.01 | C30: - zabudowa wpustów z prefabrykowanych elementów betonowych d=500mm | D30: kpl | E30: 212.00
A31: 24 | B31: U.01.01.01 | C31: demontarz istniejących wpustów DN500 | D31: kpl | E31: 25.00
A32: 25 | B32: U.01.01.01 | C32: Trójnik siodłowy DN200 | D32: 1st. | E32: 21.00
A33: 26 | B33: U.01.01.01 | C33: Regulacja istniejących studzienek i wpustów | D33: x | E33: x | F33: x | G33: x
A34: 27 | B34: U.01.01.01 | C34: Regulacja istniejących włazów studzienek z wymianą pierścieni odciążających | D34: szt. | E34: 53.00
A35: 28 | B35: U.01.01.01 | C35: Regulacja (przebudowa) istniejących wpustów | D35: szt. | E35: 71.00
A36: 29 | B36: U.01.01.01 | C36: Montaż rury osłonowej dwudzielnej DN315 | D36: m | E36: 52.00
A37: 30 | B37: U.01.01.01 | C37: Montaż rury osłonowej dwudzielnej DN400 | D37: m | E37: 213.75
A38: 31 | B38: U.01.01.01 | C38: Wposażenie pompowni P-3 wraz z rozruchem | D38: kpl | E38: 1.00
B39: RAZEM KANALIZACJA DESZCZOWA | G39: =SUM(G6:G35) -> 0.00
B42: ________________ | D42: ______________
B43: miejscowość, data | D43: podpis Wykonawcy

Sheet KS
A1: =DANE!B3 -> Aktualizacja i optymalizacja dokumentacji projektowej zadania wraz z pełnieniem nadzoru autorskiego podczas realizacji Inwestycji tj.: ”Rozbudowa drogi wojewódzkiej nr 548 Stolno-Wąbrzeźno od km 0+005 do km 29+619 z wyłączeniem węzła autostradowego w m. Lisewo od km 14+144 do km 15+146” Odcinek nr 2 – od km 15+146 do km 29+619
A2: Branża: | C2: BRANŻA SANITARNA 22.07
A3: Obiekt: | C3: Kanalizacja Sanitarna
A4: Kod CPV: | C4: 45000000-9 Roboty budowlane w zakresie wznoszenia kompletnych obiektów budowlanych lub ich części oraz roboty w zakresie inżynierii lądowej i wodnej
A5: Poz. | B5: Podstawa wyceny | C5: Wyszczególnienie elementu rozliczeniowego | D5: Jedn. | E5: Ilość jedn. | F5: Cena jedn. | G5: Wartość robót
B6: U.01.01.02 | C6: Przebudowa KANALIZACJI SANITARNEJ | D6: x | E6: x | F6: x | G6: x
A7: 1 | B7: U.01.01.02 | C7: - wykopy liniowe z umocnieniem | D7: m3 | E7: 508.32
A8: 2 | B8: U.01.01.02 | C8: - podsypka piaskowa pod rurociągami gr. 10 cm | D8: m3 | E8: 28.24
A9: 3 | B9: U.01.01.02 | C9: - ułożenie rur osłonowych PE100 SDR17 Dz200 | D9: mb | E9: 6.00
A10: 4 | B10: U.01.01.02 | C10: - montaż rurociagów z rur PEHD SDR11 PN16 Dz75 | D10: mb | E10: 21.00
A11: 5 | B11: U.01.01.02 | C11: - montaż rurociagów z rur PEHD SDR11 PN16 Dz90 | D11: mb | E11: 332.00
A12: 6 | B12: U.01.01.02 | C12: Studzienka rwizyjno odpowietrzająca DN1500 | D12: szt. | E12: 1.00
A13: 7 | B13: U.01.01.02 | C13: - próba szczelności | D13: mb | E13: 353.00
A14: 8 | B14: U.01.01.02 | C14: - płukanie rurociągu | D14: mb | E14: 353.00
A15: 9 | B15: U.01.01.02 | C15: - obsypka piaskowa rurociagów - 30cm nad wierzch rury | D15: m3 | E15: 112.96
A16: 10 | B16: U.01.01.02 | C16: - zasypanie wykopów z zagęszczeniem | D16: m3 | E16: 392.54
A17: 11 | B17: U.01.01.02 | C17: Regulacja istniejących włazów studzienek z wymianą pierścieni odciążających | D17: szt. | E17: 10.00
A18: 12 | B18: U.01.01.02 | C18: - demontaż istniejących sieci | D18: mb | E18: 330.00
B19: RAZEM KANALIZACJA SANITARNA | G19: =SUM(G7:G18) -> 0.00
B21: ________________ | D21: ______________
B22: miejscowość, data | D22: podpis Wykonawcy

Sheet W
A1: =DANE!B3 -> Aktualizacja i optymalizacja dokumentacji projektowej zadania wraz z pełnieniem nadzoru autorskiego podczas realizacji Inwestycji tj.: ”Rozbudowa drogi wojewódzkiej nr 548 Stolno-Wąbrzeźno od km 0+005 do km 29+619 z wyłączeniem węzła autostradowego w m. Lisewo od km 14+144 do km 15+146” Odcinek nr 2 – od km 15+146 do km 29+619
A2: Branża: | C2: BRANŻA SANITARNA 22.07
A3: Obiekt: | C3: Wodociąg
A4: Kod CPV: | C4: 45000000-9 Roboty budowlane w zakresie wznoszenia kompletnych obiektów budowlanych lub ich części oraz roboty w zakresie inżynierii lądowej i wodnej
A5: Poz. | B5: Podstawa wyceny | C5: Wyszczególnienie elementu rozliczeniowego | D5: Jedn. | E5: Ilość jedn. | F5: Cena jedn. | G5: Wartość robót
B6: U.01.01.03 | C6: Przebudowa sieci wodociągowej | D6: x | E6: x | F6: x | G6: x
A7: 1 | B7: U.01.01.03 | C7: - wykopy liniowe dla budowy wodociągu z umocnieniem | D7: m3 | E7: 1,478.02
A8: 2 | B8: U.01.01.03 | C8: - podsypka piaskowa pod rurociągami gr. 10 cm | D8: m3 | E8: 82.11
A9: 3 | B9: U.01.01.03 | C9: - ułożenie rur osłonowych PE100 SDR17 Dz90 | D9: mb | E9: 34.00
A10: 4 | B10: U.01.01.03 | C10: - ułożenie rur osłonowych PE100 SDR17 Dz110 | D10: mb | E10: 139.10
A11: 5 | B11: U.01.01.03 | C11: - ułożenie rur osłonowych PE100 SDR17 Dz160 | D11: mb | E11: 15.00
A12: 6 | B12: U.01.01.03 | C12: - ułożenie rur osłonowych PE100 SDR17 Dz200 | D12: mb | E12: 35.00
A13: 7 | B13: U.01.01.03 | C13: - ułożenie rur osłonowych PE100 SDR17 Dz225 | D13: mb | E13: 311.20
A14: 8 | B14: U.01.01.03 | C14: - montaż rurociagów z rur PEHD SDR11 PN16 Dz32 | D14: mb | E14: 26.50
A15: 9 | B15: U.01.01.03 | C15: - montaż rurociagów z rur PEHD SDR11 PN16 Dz40 | D15: mb | E15: 20.00
A16: 10 | B16: U.01.01.03 | C16: - montaż rurociagów z rur PEHD SDR11 PN16 Dz50 | D16: mb | E16: 186.00
A17: 11 | B17: U.01.01.03 | C17: - montaż rurociagów z rur PEHD SDR11 PN16 Dz75 | D17: mb | E17: 20.00
A18: 12 | B18: U.01.01.03 | C18: - montaż rurociagów z rur PEHD SDR11 PN16 Dz90 | D18: mb | E18: 160.50
A19: 13 | B19: U.01.01.03 | C19: - montaż rurociagów z rur PEHD SDR11 PN16 Dz110 | D19: mb | E19: 613.40
A20: 14 | B20: U.01.01.03 | C20: - montaż zasuw żeliwnych, kołnierzowych Dn40 z obudowa teleskopową, z skrzynką do zasuw | D20: szt | E20: 4.00
A21: 15 | B21: U.01.01.03 | C21: - montaż zasuw żeliwnych, kołnierzowych Dn80 z obudowa teleskopową, z skrzynką do zasuw | D21: szt | E21: 2.00
A22: 16 | B22: U.01.01.03 | C22: - montaż zasuw żeliwnych, kołnierzowych Dn100 z obudowa teleskopową, z skrzynką do zasuw | D22: szt | E22: 18.00
A23: 17 | B23: U.01.01.03 | C23: - montaż hydrantów nadziemnych, żeliwnych z zasuwą, kolanem stopowym i prostką dwukołn. Dn80 | D23: szt | E23: 4.00
A24: 18 | B24: U.01.01.03 | C24: - montaż hydrantów podziemnych, żeliwnych z zasuwą kolanem stopowym i prostką dwukołn. Dn80 | D24: szt | E24: 2.00
A25: 19 | B25: U.01.01.03 | C25: - próba szczelności sieci wodociagowej | D25: mb | E25: 1,026.40
A26: 20 | B26: U.01.01.03 | C26: - płukanie i dezynfekcja wodociagu | D26: mb | E26: 1,026.40
A27: 21 | B27: U.01.01.03 | C27: - obsypka piaskowa rurociagów - 30cm nad wierzch rury | D27: m3 | E27: 328.45
A28: 22 | B28: U.01.01.03 | C28: - zasypanie wykopów z zagęszczeniem | D28: m3 | E28: 1,141.36
A29: 23 | B29: U.01.01.03 | C29: - demontaż istniejących sieci wodociągowych wraz z armaturą | D29: mb | E29: 1,100.00
A30: 24 | B30: U.01.01.03 | C30: Regulacja istniejących skrzynek armatury | D30: szt | E30: 32.00
B31: RAZEM WODOCIĄG | G31: =SUM(G7:G30) -> 0.00
B33: ________________ | D33: ______________
B34: miejscowość, data | D34: podpis Wykonawcy

Sheet GAZ
A1: =DANE!B3 -> Aktualizacja i optymalizacja dokumentacji projektowej zadania wraz z pełnieniem nadzoru autorskiego podczas realizacji Inwestycji tj.: ”Rozbudowa drogi wojewódzkiej nr 548 Stolno-Wąbrzeźno od km 0+005 do km 29+619 z wyłączeniem węzła autostradowego w m. Lisewo od km 14+144 do km 15+146” Odcinek nr 2 – od km 15+146 do km 29+619
A2: Branża: | C2: BRANŻA SANITARNA 22.07
A3: Obiekt: | C3: Gazociąg
A4: Kod CPV: | C4: 45000000-9 Roboty budowlane w zakresie wznoszenia kompletnych obiektów budowlanych lub ich części oraz roboty w zakresie inżynierii lądowej i wodnej
A5: Poz. | B5: Podstawa wyceny | C5: Wyszczególnienie elementu rozliczeniowego | D5: Jedn. | E5: Ilość jedn. | F5: Cena jedn. | G5: Wartość robót
B6: U.01.01.04 | C6: Przebudowa sieci GAZOWEJ | D6: x | E6: x | F6: x | G6: x
A7: 1 | B7: U.01.01.04 | C7: - wykopy liniowe z umocnieniem | D7: m3 | E7: 181.06
A8: 2 | B8: U.01.01.04 | C8: - podsypka piaskowa pod rurociągami gr. 10 cm | D8: m3 | E8: 13.93
A9: 3 | B9: U.01.01.04 | C9: - ułożenie rur osłonowych PE100 SDR17 Dz315 | D9: mb | E9: 30.00
A10: 4 | B10: U.01.01.04 | C10: - montaż rurociagów z rur PEHD SDR11 PN16 Dz180 | D10: mb | E10: 174.10
A11: 5 | B11: U.01.01.04 | C11: - próba ciśnieniowa | D11: mb | E11: 174.10
A12: 6 | B12: U.01.01.04 | C12: -taśma ostrzegawcza GAZ | D12: mb | E12: 174.10
A13: 7 | B13: U.01.01.04 | C13: -przewód lokalizacyjny 2,5 mm2 | D13: mb | E13: 174.10
A14: 8 | B14: U.01.01.04 | C14: - obsypka piaskowa rurociagów - 10cm nad wierzch rury | D14: m3 | E14: 41.78
A15: 9 | B15: U.01.01.04 | C15: - zasypanie wykopów z zagęszczeniem | D15: m3 | E15: 137.89
A16: 10 | B16: U.01.01.04 | C16: - demontaż istniejących sieci gazowej | D16: mb | E16: 165.00
A17: 11 | B17: U.01.01.04 | C17: Regulacja istniejących skrzynek armatury | D17: szt | E17: 6.00
B18: RAZEM GAZOCIĄG | G18: =SUM(G7:G17) -> 0.0
B23: ________________ | D23: ______________
B24: miejscowość, data | D24: podpis Wykonawcy

Sheet Teletechnika
A1: =DANE!B3 -> Aktualizacja i optymalizacja dokumentacji projektowej zadania wraz z pełnieniem nadzoru autorskiego podczas realizacji Inwestycji tj.: ”Rozbudowa drogi wojewódzkiej nr 548 Stolno-Wąbrzeźno od km 0+005 do km 29+619 z wyłączeniem węzła autostradowego w m. Lisewo od km 14+144 do km 15+146” Odcinek nr 2 – od km 15+146 do km 29+619
A2: Branża: | C2: BRANŻA TELETECHNICZNA 22.07
A3: Obiekt: | C3: Teletechnika
A4: Kod CPV: | C4: 45000000-9 Roboty budowlane w zakresie wznoszenia kompletnych obiektów budowlanych lub ich części oraz roboty w zakresie inżynierii lądowej i wodnej
A5: Poz. | B5: Podstawa wyceny | C5: Wyszczególnienie elementu rozliczeniowego | D5: Jedn. | E5: Ilość jedn. | F5: Cena jedn. | G5: Wartość robót
A6: * | B6: T.01.01.01. | C6: Przebudowa sieci telekomunikacyjnych
C7: Sieć miejscowa | D7: * | E7: * | F7: * | G7: *
A8: 1 | C8: studnia kablowa SKR-2 kompletna (kolumny wspornikowe, wsporniki dwukablowe-metalowe) z ramą z kołnierzem betonowym typ ciężki, pokrywą typu ciężkiego ryglowaną | D8: szt. | E8: 2.00
A9: =A8+1 -> 2 | C9: regulacja wysokościowa studni kablowych | D9: szt. | E9: 4.00
A10: =A9+1 -> 3 | C10: kanalizacja kablowa 3-otworowa rurami HDPE Ø125/7,1 | D10: m | E10: 100.00
A11: 4 | C11: rura ochronna (1x)HDPE Ø125/7,1 | D11: m | E11: 301.00
A12: 5 | C12: rura ochronna (2x)HDPE Ø40/3,7 - rurociąg kablowy (wraz z kablem identyfikacyjnym) | D12: m | E12: 1,111.00
A13: 6 | C13: rura ochronna dzielona (1x)HDPE Ø160/141 | D13: m | E13: 1,802.00
A14: 7 | C14: słup pojedynczy, uszczudlony | D14: szt. | E14: 1.00
A15: 8 | C15: słup bliźniaczy, uszczudlony | D15: szt. | E15: 1.00
A16: 9 | C16: słupek rozdzielczy HDPE 30p | D16: szt. | E16: 1.00
A17: 10 | C17: przełożenie kabli linii napowietrznej wraz ze wszystkimi robotami towarzyszącymi i z kompletem osprzętu | D17: m | E17: 30.00
A18: 11 | C18: budowa kabla XzTKMXpw 10x2x0,6 ze złączami | D18: m | E18: 56.00
A19: 12 | C19: budowa kabla XzTKMXpw 5x4x0,6 ze złączami | D19: m | E19: 1,690.00
A20: 13 | C20: budowa kabla XzTKMXpw 15x4x0,6 ze złączami | D20: m | E20: 95.00
A21: 14 | C21: budowa kabla XzTKMXpw 25x4x0,6 ze złączami | D21: m | E21: 205.00
A22: 15 | C22: budowa kabla XzTKMXpw 50x4x0,6 ze złączami | D22: m | E22: 1,332.00
A23: 16 | C23: budowa kabla napowietrznego XzTKMXpwn 5x4x0,6 ze złączami | D23: m | E23: 60.00
A24: 17 | C24: rozbiórka studni kablowej | D24: szt. | E24: 1.00
A25: 18 | C25: rozbiórka słupa telekomunikacyjnego | D25: szt. | E25: 2.00
A26: 19 | C26: demontaż kabla | D26: m | E26: 3,400.00
A27: 20 | C27: demontaż kabla napowietrznego | D27: m | E27: 60.00
A28: 21 | C28: pomiary w trakcie robót i pomontażowe na kablach o żyłach metalowych | D28: kpl. | E28: 1.00
A29: 22 | C29: pozyskanie warunków technicznych i uzgodnień przebudów sieci telekomunikacyjnych z właścicielami sieci na własny koszt (tych które wymagają nowych uzgodnień), | D29: kpl. | E29: 1.00
A30: 23 | C30: pozyskania przez wykonawcę wywiadów branżowych pod kątem zweryfikowania czy nie powstały nowe sieci na własny koszt | D30: kpl. | E30: 1.00
A31: 24 | C31: nadzory właścicielskie | D31: kpl. | E31: 1.00
A32: 25 | C32: budowa kabla światłowodowego Z-XOTKtsd 24J | D32: m | E32: 16,000.00
A33: 26 | C33: kanalizacja wtórna 2xHDPE ∅32/2,9 | D33: m | E33: 100.00
A34: 27 | C34: zasobnik ZK-1 | D34: szt. | E34: 12.00
A35: 28 | C35: osłona złączowa kompletna FOSC-400-B4-S24-1 | D35: szt. | E35: 7.00
A36: 29 | C36: pomiary w trakcie robót i pomontażowe na kablach światłowodwych | D36: kpl. | E36: 1.00
A37: 30 | C37: przełożenie kabla światłowodowego kanałowego | D37: m | E37: 150.00
A38: 31 | C38: demontaż kabla światłowodowego | D38: m | E38: 16,000.00
A39: WARTOŚĆ KOSZTORYSU NETTO: | G39: =SUM(G8:G38) -> 0.00 zł
B44: ________________ | D44: ______________
B45: miejscowość, data | D45: podpis Wykonawcy

Sheet En
A1: =DANE!B3 -> Aktualizacja i optymalizacja dokumentacji projektowej zadania wraz z pełnieniem nadzoru autorskiego podczas realizacji Inwestycji tj.: ”Rozbudowa drogi wojewódzkiej nr 548 Stolno-Wąbrzeźno od km 0+005 do km 29+619 z wyłączeniem węzła autostradowego w m. Lisewo od km 14+144 do km 15+146” Odcinek nr 2 – od km 15+146 do km 29+619
A2: Branża: | C2: BRANŻA ELEKTROENERGETYCZNA 22.07
A3: Obiekt: | C3: Przebudowa sieci elektroenergetycznych
A4: Kod CPV: | C4: 45000000-9 Roboty budowlane w zakresie wznoszenia kompletnych obiektów budowlanych lub ich części oraz roboty w zakresie inżynierii lądowej i wodnej
A5: Poz. | B5: Podstawa wyceny | C5: Wyszczególnienie elementu rozliczeniowego | D5: Jedn. | E5: Ilość jedn. | F5: Cena jedn. | G5: Wartość robót
B6: U.01.03.01 U.01.03.02 | C6: Przebudowa napowietrznych linii energetycznych nN Przebudowa i budowa kablowych linii energetycznych nN | D6: x | E6: x | F6: x | G6: x
A7: 1. | C7: Zabudowa kompletnego stanowiska słupowego nN typu N3-12/10 (E) wraz z fundamentem oraz uzbrojeniem zgodnie z dokumentacją projektową | D7: kpl. | E7: 3.000
A8: 1. | C8: Zabudowa kompletnego stanowiska słupowego nN typu N3-12/12 (E) wraz z fundamentem oraz uzbrojeniem zgodnie z dokumentacją projektową | D8: kpl. | E8: 5.000
A9: 2. | C9: Zabudowa kompletnego stanowiska słupowego nN typu O-12/12 (E) wraz z fundamentem oraz uzbrojeniem zgodnie z dokumentacją projektową | D9: kpl. | E9: 1.000
A10: 4. | C10: Zabudowa kompletnego stanowiska słupowego nN typu P-12/4,3 (E) wraz z fundamentem oraz uzbrojeniem zgodnie z dokumentacją projektową | D10: kpl. | E10: 2.000
A11: 5. | C11: Zabudowa kompletnego stanowiska słupowego nN typu K-12/12 (E) wraz z fundamentem oraz uzbrojeniem zgodnie z dokumentacją projektową | D11: kpl. | E11: 2.000
A12: 6. | C12: Zabudowa kompletnego stanowiska słupowego nN typu RPK-12/10 (E) wraz z fundamentem oraz uzbrojeniem zgodnie z dokumentacją projektową | D12: kpl. | E12: 5.000
A13: 7. | C13: Zabudowa kompletnego stanowiska słupowego nN typu RNK-12/12 (E) wraz z fundamentem oraz uzbrojeniem zgodnie z dokumentacją projektową | D13: kpl. | E13: 3.000
A14: 7. | C14: Zabudowa kompletnego stanowiska słupowego nN typu RNK-12/10 (E) wraz z fundamentem oraz uzbrojeniem zgodnie z dokumentacją projektową | D14: kpl. | E14: 2.000
A15: 8. | C15: Zabudowa przewodu typu AsXSn 4x50 zgodnie z dokumentacją projektową | D15: mb | E15: 593.000
A16: 9. | C16: Zabudowa przewodu typu AsXSn 4x25 zgodnie z dokumentacją projektową | D16: mb | E16: 50.000
A17: 10. | C17: Zabudowa przewodu typu AsXSn 4x16 zgodnie z dokumentacją projektową | D17: mb | E17: 95.000
A18: 11. | C18: Istniejące przewody 4xAL 50+25 do przewieszenia na nowe słupy zgodnie z dokumentacją projektową | D18: mb | E18: 110.000
A19: 12. | C19: Istniejące przewody AsXSn 4x70 do przewieszenia na nowe słupy zgodnie z dokumentacją projektową | D19: mb | E19: 65.000
A20: 13. | C20: Istniejące przewody AsXSn 4x25 do przewieszenia na nowe słupy zgodnie z dokumentacją projektową | D20: mb | E20: 148.000
A21: 14. | C21: Zabudowa kabla nN YAKXS 4x120 zgodnie z dokumentacją projektową | D21: mb | E21: 120.000
A22: 15. | C22: Zabudowa kabla nN YAKXS 4x70 zgodnie z dokumentacją projektową | D22: mb | E22: 140.000
A23: 16. | C23: Zabudowa kabla nN YAKXS 4x35 zgodnie z dokumentacją projektową | D23: mb | E23: 70.000
A24: 17. | C24: Zabudowa mufy kablowej nN POLJ-01/25-70 zgodnie z dokumentacją projektową | D24: kpl. | E24: 4.000
A25: 18. | C25: Zabudowa mufy kablowej nN POLJ-01/70-120 zgodnie z dokumentacją projektową | D25: kpl. | E25: 2.000
A26: 19. | C26: Zabudowa ograniczników przepięć typu ASA-0,66/5kA | D26: kpl. | E26: 42.000
A27: 20. | C27: Zabudowa zejścia kablem ze słupa (rura UV fi 75, uchwyty, opaski, zaciski, termokurcze, itp.) zgodnie z dokumentacją proejktową | D27: kpl. | E27: 8.000
A28: 21. | C28: Wykonanie przewiertu sterowanego rurą SRS-G 110 | D28: mb | E28: 94.000
A29: 22. | C29: Zabudowa rury ochronnej SRS 110 zgodnie z dokumentacją projektową | D29: mb | E29: 64.000
A30: 23. | C30: Wykonanie zabezpieczenia istniejących kabli nN rurą A120PS zgodnie z dokumentacja projektową | D30: mb | E30: 230.000
A31: 24. | C31: Wykonanie zabezpieczenia istniejących kabli SN rurą A160PS zgodnie z dokumentacja projektową | D31: mb | E31: 125.000
A32: 25. | C32: Zabudowa uziomu pogrążalnego stalowego ocynkowanego fi 20, l=2x15m (R<10Ω) | D32: kpl. | E32: 12.000
A33: 26. | C33: Zabudowa uziomu pogrążalnego stalowego ocynkowanego fi 20, l=15m (R<30Ω) | D33: kpl. | E33: 11.000
A34: 28. | C34: Demontaż słupów linii napowietrznej | D34: kpl. | E34: 23.000
A35: 29. | C35: Demontaż linii napowietrznej nN | D35: mb | E35: 1,300
A36: 30. | C36: Demontaż opraw oświetlenia ulicznego | D36: kpl. | E36: 40
A37: 31. | C37: Demontaż linii kablowej nN | D37: mb | E37: 350
B38: RAZEM ENERGETYKA nN | G38: =SUM(G7:G37) -> 0.00
B41: ________________ | D41: ______________
B42: miejscowość, data | D42: podpis Wykonawcy

Sheet Os
A1: =DANE!B3 -> Aktualizacja i optymalizacja dokumentacji projektowej zadania wraz z pełnieniem nadzoru autorskiego podczas realizacji Inwestycji tj.: ”Rozbudowa drogi wojewódzkiej nr 548 Stolno-Wąbrzeźno od km 0+005 do km 29+619 z wyłączeniem węzła autostradowego w m. Lisewo od km 14+144 do km 15+146” Odcinek nr 2 – od km 15+146 do km 29+619
A2: Branża: | C2: BRANŻA ELEKTROENERGETYCZNA 22.07
A3: Obiekt: | C3: Budowa Oświetlenia Drogowego
A4: Kod CPV: | C4: 45000000-9 Roboty budowlane w zakresie wznoszenia kompletnych obiektów budowlanych lub ich części oraz roboty w zakresie inżynierii lądowej i wodnej
A5: Poz. | B5: Podstawa wyceny | C5: Wyszczególnienie elementu rozliczeniowego | D5: Jedn. | E5: Ilość jedn. | F5: Cena jedn. | G5: Wartość robót
B6: U.07.07.01 | C6: Budowa oswietlenia drogowego | D6: x | E6: x | F6: x | G6: x
A7: Budowa oświetlenia drogowego w m. Lisewo od km 15+002 do km 15+552
A8: 1. | C8: - zabudowa szafy oświetlenia ulicznego SOU-3 zgodnie z dokumentacją projektową | D8: kpl | E8: 1
A9: 2. | C9: - zabudowa słupów aluminiowych, anodowanych na kolor naturalnego aluminium o wysokości do oprawy h=10m i wysiegniku 1m o kącie 5 stopni wraz z fundamentem prefabrykowanym zgodnie z dokumentacją projektową | D9: kpl | E9: 10
A10: 3. | C10: - zabudowa słupów aluminiowych, anodowanych na kolor naturalnego aluminium o wysokości do oprawy h=5,5m i wysiegniku 2,5m o kącie 5 stopni wraz z fundamentem prefabrykowanym zgodnie z dokumentacją projektową | D10: kpl | E10: 16
A11: 4. | C11: - zabudowa opraw oświetleniowych LED 105W, 4000K z optyką DW zgodnie z dokumentacją projektową | D11: kpl | E11: 6
A12: 5. | C12: - zabudowa opraw oświetleniowych LED 79W, 4000K z optyką T2 zgodnie z dokumentacją projektową | D12: kpl | E12: 16
A13: 6. | C13: - zabudowa opraw oświetleniowych LED 67W, 4000K z optyką T2 zgodnie z dokumentacją projektową | D13: kpl | E13: 2
A14: 7. | C14: - zabudowa opraw oświetleniowych LED 55W, 4000K z optyką T2 zgodnie z dokumentacją projektową | D14: kpl | E14: 2
A15: 8. | C15: - zabudowa kabla YAKXS 4x35 zgodnie z dokumentacja projektową | D15: mb | E15: 1,036.00
A16: 9. | C16: - zabudowa bednarki FeZn30x4 zgodnie z dokumentacja projektową | D16: mb | E16: 1,036.00
A17: 10. | C17: - wykonanie przewiertów/przecisków rurą np. typu SRS-G 110 zgodnie z dokumentacja projektową | D17: mb | E17: 32.00
A18: 11. | C18: - zabudowa rur ochronncyh np. typu SRS 110 zgodnie z dokumentacja projektową | D18: mb | E18: 62.00
A19: 12. | C19: - zabudowa rur ochronncyh np. typu DVK 110 zgodnie z dokumentacja projektową | D19: mb | E19: 60.00
A20: 13. | C20: - zabudowa złącza słupowego/tabliczki słupowej zgodnie z dokumentacja projektową | D20: kpl. | E20: 26.00
A21: 14. | C21: - zabudowa uziomu stalowego ocynkowanego pogrążalnego fi 20, l=2x12m (R<10Ω) zgodnie z dokumentacja projektową | D21: kpl. | E21: 1.00
A22: 15. | C22: - zabudowa uziomu stalowego ocynkowanego pogrążalnego fi 20, l=12m (R<30Ω) zgodnie z dokumentacja projektową | D22: kpl. | E22: 3.00
A23: 16. | C23: - zabudowa przewodu w słupie typu YDYżo 3x2,5 zgodnie z dokumentacja projektową | D23: mb | E23: 338.00
A24: 17. | C24: - wykonanie pomiarów elektrycznych powykonawczych | D24: kpl. | E24: 1.00
A25: 18. | C25: - wykonanie pomiarówfotometrycznych powykonawczych | D25: kpl. | E25: 1.00
A26: 19. | C26: - obsługa geodezyjna | D26: kpl. | E26: 1.00
B27: RAZEM | G27: =SUM(G8:G26) -> 0.00
A28: Budowa oświetlenia drogowego w m. Józefkowo od km 16+625 do km 17+025
A29: 1. | C29: - zabudowa szafy oświetlenia ulicznego SOU-3 zgodnie z dokumentacją projektową | D29: kpl | E29: 1
A30: 2. | C30: - zabudowa słupów aluminiowych, anodowanych na kolor naturalnego aluminium o wysokości do oprawy h=10m i wysiegniku 2,5m o kącie 5 stopni wraz z fundamentem prefabrykowanym zgodnie z dokumentacją projektową | D30: kpl | E30: 10
A31: 3. | C31: - zabudowa słupów aluminiowych, anodowanych na kolor naturalnego aluminium o wysokości do oprawy h=10m i wysiegniku 1m o kącie 5 stopni wraz z fundamentem prefabrykowanym zgodnie z dokumentacją projektową | D31: kpl | E31: 12
A32: 4. | C32: - zabudowa słupów aluminiowych, anodowanych na kolor naturalnego aluminium o wysokości do oprawy h=5,5m i wysiegniku 2,5m o kącie 5 stopni wraz z fundamentem prefabrykowanym zgodnie z dokumentacją projektową | D32: kpl | E32: 4
A33: 5. | C33: - zabudowa słupów aluminiowych, anodowanych na kolor naturalnego aluminium o wysokości do oprawy h=5,5m i wysiegniku 1,5m o kącie 5 stopni wraz z fundamentem prefabrykowanym zgodnie z dokumentacją projektową | D33: kpl | E33: 4
A34: 6. | C34: - zabudowa opraw oświetleniowych LED 105W, 4000K z optyką DW zgodnie z dokumentacją projektową | D34: kpl | E34: 8
A35: 7. | C35: - zabudowa opraw oświetleniowych LED 79W, 4000K z optyką T2 zgodnie z dokumentacją projektową | D35: kpl | E35: 6
A36: 8. | C36: - zabudowa opraw oświetleniowych LED 67W, 4000K z optyką T2 zgodnie z dokumentacją projektową | D36: kpl | E36: 4
A37: 9. | C37: - zabudowa opraw oświetleniowych LED 55W, 4000K z optyką T2 zgodnie z dokumentacją projektową | D37: kpl | E37: 4
A38: 10. | C38: - zabudowa opraw oświetleniowych LED 86W, 6000K P asymetrycznych zgodnie z dokumentacją projektową | D38: kpl | E38: 8
A39: 11. | C39: - zabudowa kabla YAKXS 4x35 zgodnie z dokumentacja projektową | D39: mb | E39: 825.00
A40: 12. | C40: - zabudowa bednarki FeZn30x4 zgodnie z dokumentacja projektową | D40: mb | E40: 825.00
A41: 13. | C41: - wykonanie przewiertów/przecisków rurą np. typu SRS-G 110 zgodnie z dokumentacja projektową | D41: mb | E41: 136.00
A42: 14. | C42: - zabudowa rur ochronncyh np. typu SRS 110 zgodnie z dokumentacja projektową | D42: mb | E42: 40.00
A43: 15. | C43: - zabudowa rur ochronncyh np. typu DVK 110 zgodnie z dokumentacja projektową | D43: mb | E43: 106.00
A44: 16. | C44: - zabudowa złącza słupowego/tabliczki słupowej zgodnie z dokumentacja projektową | D44: kpl. | E44: 30.00
A45: 17. | C45: - zabudowa uziomu stalowego ocynkowanego pogrążalnego fi 20, l=2x12m (R<10Ω) zgodnie z dokumentacja projektową | D45: kpl. | E45: 1.00
A46: 18. | C46: - zabudowa uziomu stalowego ocynkowanego pogrążalnego fi 20, l=12m (R<30Ω) zgodnie z dokumentacja projektową | D46: kpl. | E46: 4.00
A47: 19. | C47: - zabudowa przewodu w słupie typu YDYżo 3x2,5 zgodnie z dokumentacja projektową | D47: mb | E47: 390.00
A48: 20. | C48: - wykonanie pomiarów elektrycznych powykonawczych | D48: kpl. | E48: 1.00
A49: 21. | C49: - wykonanie pomiarówfotometrycznych powykonawczych | D49: kpl. | E49: 1.00
A50: 22. | C50: - obsługa geodezyjna | D50: kpl. | E50: 1.00
B51: RAZEM | G51: =SUM(G29:G50) -> 0.00
A52: Budowa oświetlenia drogowego w m. Płużnica od km 18+985 do km 20+257
A53: 1. | C53: - zabudowa szafy oświetlenia ulicznego SOU-3 zgodnie z dokumentacją projektową | D53: kpl | E53: 1
A54: 2. | C54: - zabudowa słupów aluminiowych, anodowanych na kolor naturalnego aluminium o wysokości do oprawy h=10m i wysiegniku 2,5m o kącie 5 stopni wraz z fundamentem prefabrykowanym zgodnie z dokumentacją projektową | D54: kpl | E54: 19
A55: 3. | C55: - zabudowa słupów aluminiowych, anodowanych na kolor naturalnego aluminium o wysokości do oprawy h=10m i wysiegniku 1m o kącie 5 stopni wraz z fundamentem prefabrykowanym zgodnie z dokumentacją projektową | D55: kpl | E55: 32
A56: 4. | C56: - zabudowa słupów aluminiowych, anodowanych na kolor naturalnego aluminium o wysokości do oprawy h=5,5m i wysiegniku 2,5m o kącie 5 stopni wraz z fundamentem prefabrykowanym zgodnie z dokumentacją projektową | D56: kpl | E56: 6
A57: 5. | C57: - zabudowa słupów aluminiowych, anodowanych na kolor naturalnego aluminium o wysokości do oprawy h=5,5m i wysiegniku 1,5m o kącie 5 stopni wraz z fundamentem prefabrykowanym zgodnie z dokumentacją projektową | D57: kpl | E57: 6
A58: 6. | C58: - zabudowa opraw oświetleniowych LED 105W, 4000K z optyką DW zgodnie z dokumentacją projektową | D58: kpl | E58: 8
A59: 7. | C59: - zabudowa opraw oświetleniowych LED 79W, 4000K z optyką T2 zgodnie z dokumentacją projektową | D59: kpl | E59: 35
A60: 8. | C60: - zabudowa opraw oświetleniowych LED 67W, 4000K z optyką T2 zgodnie z dokumentacją projektową | D60: kpl | E60: 4
A61: 9. | C61: - zabudowa opraw oświetleniowych LED 55W, 4000K z optyką T2 zgodnie z dokumentacją projektową | D61: kpl | E61: 4
A62: 10. | C62: - zabudowa opraw oświetleniowych LED 86W, 6000K P asymetrycznych zgodnie z dokumentacją projektową | D62: kpl | E62: 12
A63: 11. | C63: - zabudowa kabla YAKXS 4x35 zgodnie z dokumentacja projektową | D63: mb | E63: 1,882.00
A64: 12. | C64: - zabudowa bednarki FeZn30x4 zgodnie z dokumentacja projektową | D64: mb | E64: 1,882.00
A65: 13. | C65: - wykonanie przewiertów/przecisków rurą np. typu SRS-G 110 zgodnie z dokumentacja projektową | D65: mb | E65: 132.00
A66: 14. | C66: - zabudowa rur ochronncyh np. typu SRS 110 zgodnie z dokumentacja projektową | D66: mb | E66: 154.00
A67: 15. | C67: - zabudowa rur ochronncyh np. typu DVK 110 zgodnie z dokumentacja projektową | D67: mb | E67: 160.00
A68: 16. | C68: - zabudowa złącza słupowego/tabliczki słupowej zgodnie z dokumentacja projektową | D68: kpl. | E68: 63.00
A69: 17. | C69: - zabudowa uziomu stalowego ocynkowanego pogrążalnego fi 20, l=2x12m (R<10Ω) zgodnie z dokumentacja projektową | D69: kpl. | E69: 1.00
A70: 18. | C70: - zabudowa uziomu stalowego ocynkowanego pogrążalnego fi 20, l=12m (R<30Ω) zgodnie z dokumentacja projektową | D70: kpl. | E70: 7.00
A71: 19. | C71: - zabudowa przewodu w słupie typu YDYżo 3x2,5 zgodnie z dokumentacja projektową | D71: mb | E71: 819.00
A72: 20. | C72: - wykonanie pomiarów elektrycznych powykonawczych | D72: kpl. | E72: 1.00
A73: 21. | C73: - wykonanie pomiarów fotometrycznych powykonawczych | D73: kpl. | E73: 1.00
A74: 22. | C74: - obsługa geodezyjna | D74: kpl. | E74: 1.00
B75: RAZEM | G75: =SUM(G53:G74) -> 0.00
A76: Budowa oświetlenia drogowego w m. Czaple i m. Bartoszewice od km 20+257 do km 20+987
A77: 1. | C77: - zabudowa szafy oświetlenia ulicznego SOU-3 zgodnie z dokumentacją projektową | D77: kpl | E77: 1
A78: 2. | C78: - zabudowa słupów aluminiowych, anodowanych na kolor naturalnego aluminium o wysokości do oprawy h=10m i wysiegniku 2,5m o kącie 5 stopni wraz z fundamentem prefabrykowanym zgodnie z dokumentacją projektową | D78: kpl | E78: 9
A79: 3. | C79: - zabudowa słupów aluminiowych, anodowanych na kolor naturalnego aluminium o wysokości do oprawy h=10m i wysiegniku 1m o kącie 5 stopni wraz z fundamentem prefabrykowanym zgodnie z dokumentacją projektową | D79: kpl | E79: 22
A80: 4. | C80: - zabudowa słupów aluminiowych, anodowanych na kolor naturalnego aluminium o wysokości do oprawy h=5,5m i wysiegniku 2,5m o kącie 5 stopni wraz z fundamentem prefabrykowanym zgodnie z dokumentacją projektową | D80: kpl | E80: 4
A81: 5. | C81: - zabudowa słupów aluminiowych, anodowanych na kolor naturalnego aluminium o wysokości do oprawy h=5,5m i wysiegniku 1,5m o kącie 5 stopni wraz z fundamentem prefabrykowanym zgodnie z dokumentacją projektową | D81: kpl | E81: 4
A82: 6. | C82: - zabudowa opraw oświetleniowych LED 105W, 4000K z optyką DW zgodnie z dokumentacją projektową | D82: kpl | E82: 8
A83: 7. | C83: - zabudowa opraw oświetleniowych LED 79W, 4000K z optyką T2 zgodnie z dokumentacją projektową | D83: kpl | E83: 17
A84: 8. | C84: - zabudowa opraw oświetleniowych LED 67W, 4000K z optyką T2 zgodnie z dokumentacją projektową | D84: kpl | E84: 3
A85: 9. | C85: - zabudowa opraw oświetleniowych LED 55W, 4000K z optyką T2 zgodnie z dokumentacją projektową | D85: kpl | E85: 3
A86: 10. | C86: - zabudowa opraw oświetleniowych LED 86W, 6000K P asymetrycznych zgodnie z dokumentacją projektową | D86: kpl | E86: 8
A87: 11. | C87: - zabudowa kabla YAKXS 4x35 zgodnie z dokumentacja projektową | D87: mb | E87: 1,110.00
A88: 12. | C88: - zabudowa bednarki FeZn30x4 zgodnie z dokumentacja projektową | D88: mb | E88: 1,110.00
A89: 13. | C89: - wykonanie przewiertów/przecisków rurą np. typu SRS-G 110 zgodnie z dokumentacja projektową | D89: mb | E89: 112.00
A90: 14. | C90: - zabudowa rur ochronncyh np. typu SRS 110 zgodnie z dokumentacja projektową | D90: mb | E90: 64.00
A91: 15. | C91: - zabudowa rur ochronncyh np. typu DVK 110 zgodnie z dokumentacja projektową | D91: mb | E91: 92.00
A92: 16. | C92: - zabudowa złącza słupowego/tabliczki słupowej zgodnie z dokumentacja projektową | D92: kpl. | E92: 39.00
A93: 17. | C93: - zabudowa uziomu stalowego ocynkowanego pogrążalnego fi 20, l=2x12m (R<10Ω) zgodnie z dokumentacja projektową | D93: kpl. | E93: 1.00
A94: 18. | C94: - zabudowa uziomu stalowego ocynkowanego pogrążalnego fi 20, l=12m (R<30Ω) zgodnie z dokumentacja projektową | D94: kpl. | E94: 5.00
A95: 19. | C95: - zabudowa przewodu w słupie typu YDYżo 3x2,5 zgodnie z dokumentacja projektową | D95: mb | E95: 507.00
A96: 20. | C96: - wykonanie pomiarów elektrycznych powykonawczych | D96: kpl. | E96: 1.00
A97: 21. | C97: - wykonanie pomiarów fotometrycznych powykonawczych | D97: kpl. | E97: 1.00
A98: 22. | C98: - obsługa geodezyjna | D98: kpl. | E98: 1.00
A99: 23. | C99: - demontż istniejącego punktu oświetleniowego kompletnie wyposażonego typu P/ŻN-10 wraz z oprawą | D99: kpl | E99: 2
A100: 24. | C100: - demontaż istniejącej szafki oświetleniowej ze słupa | D100: kpl | E100: 1
A101: 25. | C101: - demontaż przewodu napowietrznego AsXSn 2x25 | D101: mb | E101: 40
B102: RAZEM | G102: =SUM(G77:G101) -> 0.00
A103: Budowa oświetlenia drogowego w m. Bartoszewice i m. Czaple od km 22+580 do km 23+010
A104: 1. | C104: - zabudowa szafy oświetlenia ulicznego SOU-3 zgodnie z dokumentacją projektową | D104: kpl | E104: 1
A105: 2. | C105: - zabudowa słupów aluminiowych, anodowanych na kolor naturalnego aluminium o wysokości do oprawy h=10m i wysiegniku 2,5m o kącie 5 stopni wraz z fundamentem prefabrykowanym zgodnie z dokumentacją projektową | D105: kpl | E105: 11
A106: 3. | C106: - zabudowa słupów aluminiowych, anodowanych na kolor naturalnego aluminium o wysokości do oprawy h=10m i wysiegniku 1m o kącie 5 stopni wraz z fundamentem prefabrykowanym zgodnie z dokumentacją projektową | D106: kpl | E106: 11
A107: 4. | C107: - zabudowa słupów aluminiowych, anodowanych na kolor naturalnego aluminium o wysokości do oprawy h=5,5m i wysiegniku 2,5m o kącie 5 stopni wraz z fundamentem prefabrykowanym zgodnie z dokumentacją projektową | D107: kpl | E107: 4
A108: 5. | C108: - zabudowa słupów aluminiowych, anodowanych na kolor naturalnego aluminium o wysokości do oprawy h=5,5m i wysiegniku 1,5m o kącie 5 stopni wraz z fundamentem prefabrykowanym zgodnie z dokumentacją projektową | D108: kpl | E108: 4
A109: 6. | C109: - zabudowa opraw oświetleniowych LED 105W, 4000K z optyką DW zgodnie z dokumentacją projektową | D109: kpl | E109: 8
A110: 7. | C110: - zabudowa opraw oświetleniowych LED 79W, 4000K z optyką T2 zgodnie z dokumentacją projektową | D110: kpl | E110: 6
A111: 8. | C111: - zabudowa opraw oświetleniowych LED 67W, 4000K z optyką T2 zgodnie z dokumentacją projektową | D111: kpl | E111: 4
A112: 9. | C112: - zabudowa opraw oświetleniowych LED 55W, 4000K z optyką T2 zgodnie z dokumentacją projektową | D112: kpl | E112: 4
A113: 10. | C113: - zabudowa opraw oświetleniowych LED 86W, 6000K P asymetrycznych zgodnie z dokumentacją projektową | D113: kpl | E113: 8
A114: 11. | C114: - zabudowa kabla YAKXS 4x35 zgodnie z dokumentacja projektową | D114: mb | E114: 855.00
A115: 12. | C115: - zabudowa bednarki FeZn30x4 zgodnie z dokumentacja projektową | D115: mb | E115: 855.00
A116: 13. | C116: - wykonanie przewiertów/przecisków rurą np. typu SRS-G 110 zgodnie z dokumentacja projektową | D116: mb | E116: 92.00
A117: 14. | C117: - zabudowa rur ochronncyh np. typu SRS 110 zgodnie z dokumentacja projektową | D117: mb | E117: 40.00
A118: 15. | C118: - zabudowa rur ochronncyh np. typu DVK 110 zgodnie z dokumentacja projektową | D118: mb | E118: 74.00
A119: 16. | C119: - zabudowa złącza słupowego/tabliczki słupowej zgodnie z dokumentacja projektową | D119: kpl. | E119: 30.00
A120: 17. | C120: - zabudowa uziomu stalowego ocynkowanego pogrążalnego fi 20, l=2x12m (R<10Ω) zgodnie z dokumentacja projektową | D120: kpl. | E120: 1.00
A121: 18. | C121: - zabudowa uziomu stalowego ocynkowanego pogrążalnego fi 20, l=12m (R<30Ω) zgodnie z dokumentacja projektową | D121: kpl. | E121: 5.00
A122: 19. | C122: - zabudowa przewodu w słupie typu YDYżo 3x2,5 zgodnie z dokumentacja projektową | D122: mb | E122: 390.00
A123: 20. | C123: - wykonanie pomiarów elektrycznych powykonawczych | D123: kpl. | E123: 1.00
A124: 21. | C124: - wykonanie pomiarów fotometrycznych powykonawczych | D124: kpl. | E124: 1.00
A125: 22. | C125: - obsługa geodezyjna | D125: kpl. | E125: 1.00
B126: RAZEM | G126: =SUM(G104:G125) -> 0.00
A127: Budowa oświetlenia drogowego w m. Trzcianek od km 25+015 do km 25+445
A128: 1. | C128: - zabudowa szafy oświetlenia ulicznego SOU-3 zgodnie z dokumentacją projektową | D128: kpl | E128: 1
A129: 2. | C129: - zabudowa słupów aluminiowych, anodowanych na kolor naturalnego aluminium o wysokości do oprawy h=10m i wysiegniku 2,5m o kącie 5 stopni wraz z fundamentem prefabrykowanym zgodnie z dokumentacją projektową | D129: kpl | E129: 6
A130: 3. | C130: - zabudowa słupów aluminiowych, anodowanych na kolor naturalnego aluminium o wysokości do oprawy h=10m i wysiegniku 1m o kącie 5 stopni wraz z fundamentem prefabrykowanym zgodnie z dokumentacją projektową | D130: kpl | E130: 16
A131: 4. | C131: - zabudowa słupów aluminiowych, anodowanych na kolor naturalnego aluminium o wysokości do oprawy h=5,5m i wysiegniku 2,5m o kącie 5 stopni wraz z fundamentem prefabrykowanym zgodnie z dokumentacją projektową | D131: kpl | E131: 4
A132: 5. | C132: - zabudowa słupów aluminiowych, anodowanych na kolor naturalnego aluminium o wysokości do oprawy h=5,5m i wysiegniku 1,5m o kącie 5 stopni wraz z fundamentem prefabrykowanym zgodnie z dokumentacją projektową | D132: kpl | E132: 4
A133: 6. | C133: - zabudowa opraw oświetleniowych LED 105W, 4000K z optyką DW zgodnie z dokumentacją projektową | D133: kpl | E133: 8
A134: 7. | C134: - zabudowa opraw oświetleniowych LED 79W, 4000K z optyką T2 zgodnie z dokumentacją projektową | D134: kpl | E134: 6
A135: 8. | C135: - zabudowa opraw oświetleniowych LED 67W, 4000K z optyką T2 zgodnie z dokumentacją projektową | D135: kpl | E135: 4
A136: 9. | C136: - zabudowa opraw oświetleniowych LED 55W, 4000K z optyką T2 zgodnie z dokumentacją projektową | D136: kpl | E136: 4
A137: 10. | C137: - zabudowa opraw oświetleniowych LED 86W, 6000K P asymetrycznych zgodnie z dokumentacją projektową | D137: kpl | E137: 8
A138: 11. | C138: - zabudowa kabla YAKXS 4x35 zgodnie z dokumentacja projektową | D138: mb | E138: 810.00
A139: 12. | C139: - zabudowa bednarki FeZn30x4 zgodnie z dokumentacja projektową | D139: mb | E139: 810.00
A140: 13. | C140: - wykonanie przewiertów/przecisków rurą np. typu SRS-G 110 zgodnie z dokumentacja projektową | D140: mb | E140: 88.00
A141: 14. | C141: - zabudowa rur ochronncyh np. typu SRS 110 zgodnie z dokumentacja projektową | D141: mb | E141: 46.00
A142: 15. | C142: - zabudowa rur ochronncyh np. typu DVK 110 zgodnie z dokumentacja projektową | D142: mb | E142: 72.00
A143: 16. | C143: - zabudowa złącza słupowego/tabliczki słupowej zgodnie z dokumentacja projektową | D143: kpl. | E143: 30.00
A144: 17. | C144: - zabudowa uziomu stalowego ocynkowanego pogrążalnego fi 20, l=2x12m (R<10Ω) zgodnie z dokumentacja projektową | D144: kpl. | E144: 1.00
A145: 18. | C145: - zabudowa uziomu stalowego ocynkowanego pogrążalnego fi 20, l=12m (R<30Ω) zgodnie z dokumentacja projektową | D145: kpl. | E145: 5.00
A146: 19. | C146: - zabudowa przewodu w słupie typu YDYżo 3x2,5 zgodnie z dokumentacja projektową | D146: mb | E146: 390.00
A147: 20. | C147: - wykonanie pomiarów elektrycznych powykonawczych | D147: kpl. | E147: 1.00
A148: 21. | C148: - wykonanie pomiarów fotometrycznych powykonawczych | D148: kpl. | E148: 1.00
A149: 22. | C149: - obsługa geodezyjna | D149: kpl. | E149: 1.00
B150: RAZEM | G150: =SUM(G128:G149) -> 0.00
A151: Budowa oświetlenia drogowego w m. Wąbrzeźno od km 28+890 do km 29+440
A152: 1. | C152: - zabudowa szafy oświetlenia ulicznego SOU-3 zgodnie z dokumentacją projektową | D152: kpl | E152: 1
A153: 2. | C153: - zabudowa słupów aluminiowych, anodowanych na kolor naturalnego aluminium o wysokości do oprawy h=10m i wysiegniku 2,5m o kącie 5 stopni wraz z fundamentem prefabrykowanym zgodnie z dokumentacją projektową | D153: kpl | E153: 7
A154: 3. | C154: - zabudowa słupów aluminiowych, anodowanych na kolor naturalnego aluminium o wysokości do oprawy h=10m i wysiegniku 1m o kącie 5 stopni wraz z fundamentem prefabrykowanym zgodnie z dokumentacją projektową | D154: kpl | E154: 12
A155: 4. | C155: - zabudowa słupów aluminiowych, anodowanych na kolor naturalnego aluminium o wysokości do oprawy h=5,5m i wysiegniku 2,5m o kącie 5 stopni wraz z fundamentem prefabrykowanym zgodnie z dokumentacją projektową | D155: kpl | E155: 1
A156: 5. | C156: - zabudowa słupów aluminiowych, anodowanych na kolor naturalnego aluminium o wysokości do oprawy h=5,5m i wysiegniku 1,5m o kącie 5 stopni wraz z fundamentem prefabrykowanym zgodnie z dokumentacją projektową | D156: kpl | E156: 1
A157: 6. | C157: - zabudowa opraw oświetleniowych LED 105W, 4000K z optyką DW zgodnie z dokumentacją projektową | D157: kpl | E157: 4
A158: 7. | C158: - zabudowa opraw oświetleniowych LED 79W, 4000K z optyką T2 zgodnie z dokumentacją projektową | D158: kpl | E158: 12
A159: 8. | C159: - zabudowa opraw oświetleniowych LED 67W, 4000K z optyką T2 zgodnie z dokumentacją projektową | D159: kpl | E159: 2
A160: 9. | C160: - zabudowa opraw oświetleniowych LED 55W, 4000K z optyką T2 zgodnie z dokumentacją projektową | D160: kpl | E160: 1
A161: 10. | C161: - zabudowa opraw oświetleniowych LED 86W, 6000K P asymetrycznych zgodnie z dokumentacją projektową | D161: kpl | E161: 2
A162: 11. | C162: - zabudowa kabla YAKXS 4x35 zgodnie z dokumentacja projektową | D162: mb | E162: 702.00
A163: 12. | C163: - zabudowa bednarki FeZn30x4 zgodnie z dokumentacja projektową | D163: mb | E163: 702.00
A164: 13. | C164: - wykonanie przewiertów/przecisków rurą np. typu SRS-G 110 zgodnie z dokumentacja projektową | D164: mb | E164: 42.00
A165: 14. | C165: - zabudowa rur ochronncyh np. typu SRS 110 zgodnie z dokumentacja projektową | D165: mb | E165: 32.00
A166: 15. | C166: - zabudowa rur ochronncyh np. typu DVK 110 zgodnie z dokumentacja projektową | D166: mb | E166: 94.00
A167: 16. | C167: - zabudowa złącza słupowego/tabliczki słupowej zgodnie z dokumentacja projektową | D167: kpl. | E167: 21.00
A168: 17. | C168: - zabudowa uziomu stalowego ocynkowanego pogrążalnego fi 20, l=2x12m (R<10Ω) zgodnie z dokumentacja projektową | D168: kpl. | E168: 1.00
A169: 18. | C169: - zabudowa uziomu stalowego ocynkowanego pogrążalnego fi 20, l=12m (R<30Ω) zgodnie z dokumentacja projektową | D169: kpl. | E169: 3.00
A170: 19. | C170: - zabudowa przewodu w słupie typu YDYżo 3x2,5 zgodnie z dokumentacja projektową | D170: mb | E170: 273.00
A171: 20. | C171: - wykonanie pomiarów elektrycznych powykonawczych | D171: kpl. | E171: 1.00
A172: 21. | C172: - wykonanie pomiarów fotometrycznych powykonawczych | D172: kpl. | E172: 1.00
A173: 22. | C173: - obsługa geodezyjna | D173: kpl. | E173: 1.00
A174: 23. | C174: - demontż istniejącego punktu oświetleniowego kompletnie wyposażonego typu EOC-10,5/2,5 wraz z oprawą | D174: kpl | E174: 1
A175: 24. | C175: - demontaż linii kablowej YAKXS 4x35 | D175: mb | E175: 42
B176: RAZEM | G176: =SUM(G152:G175) -> 0.00
G177: =SUM(G176,G150,G126,G102,G75,G51,G27) -> 0.00
B178: ________________ | D178: ______________
B179: miejscowość, data | D179: podpis Wykonawcy

Sheet Zasilanie
A1: =DANE!B3 -> Aktualizacja i optymalizacja dokumentacji projektowej zadania wraz z pełnieniem nadzoru autorskiego podczas realizacji Inwestycji tj.: ”Rozbudowa drogi wojewódzkiej nr 548 Stolno-Wąbrzeźno od km 0+005 do km 29+619 z wyłączeniem węzła autostradowego w m. Lisewo od km 14+144 do km 15+146” Odcinek nr 2 – od km 15+146 do km 29+619
A2: Branża: | C2: BRANŻA ELEKTROENERGETYCZNA 22.07
A3: Obiekt: | C3: Zasilanie obiektów
A4: Kod CPV: | C4: 45000000-9 Roboty budowlane w zakresie wznoszenia kompletnych obiektów budowlanych lub ich części oraz roboty w zakresie inżynierii lądowej i wodnej
A5: Poz. | B5: Podstawa wyceny | C5: Wyszczególnienie elementu rozliczeniowego | D5: Jedn. | E5: Ilość jedn. | F5: Cena jedn. | G5: Wartość robót
B6: U.07.07.01 | C6: Zasilanie obiektów | D6: x | E6: x | F6: x | G6: x
A7: ZASILANIE URZĄDZEŃ
A8: L.p. | B8: Numer STWiORB | C8: Wyszczególnienie elementu rozliczeniowego | D8: Jednostka | F8: Cena jednostkowa | G8: Wartość robót
D9: Nazwa | E9: Ilość
B10: U.01.03.02 | C10: Przebudowa i budowa kablowych linii energetycznych | D10: x | E10: x | F10: x | G10: x
A11: Budowa zasilania pompowni PD3 w m. Płużnica w km 19+085
A12: 1. | C12: - zabudowa kabla YKXS 4x25 zgodnie z dokumentacja projektową | D12: mb | E12: 55.00
A13: 2. | C13: - zabudowa rur ochronncyh np. typu SRS 110 zgodnie z dokumentacja projektową | D13: mb | E13: 16.00
A14: 3. | C14: - zabudowa rur ochronncyh np. typu DVK 110 zgodnie z dokumentacja projektową | D14: mb | E14: 12.00
A15: 4. | C15: - zabudowa uziomu stalowego ocynkowanego pogrążalnego fi 20, l=2x12m (R<10Ω) zgodnie z dokumentacja projektową | D15: kpl. | E15: 1.00
A16: 5. | C16: - wykonanie pomiarów elektrycznych powykonawczych | D16: kpl. | E16: 1.00
A17: 6. | C17: - obsługa geodezyjna | D17: kpl. | E17: 1.00
B18: RAZEM | G18: =SUM(G12:G17) -> 0.00
B21: ________________ | D21: ______________
B22: miejscowość, data | D22: podpis Wykonawcy

Sheet Melioracja
A1: =DANE!B3 -> Aktualizacja i optymalizacja dokumentacji projektowej zadania wraz z pełnieniem nadzoru autorskiego podczas realizacji Inwestycji tj.: ”Rozbudowa drogi wojewódzkiej nr 548 Stolno-Wąbrzeźno od km 0+005 do km 29+619 z wyłączeniem węzła autostradowego w m. Lisewo od km 14+144 do km 15+146” Odcinek nr 2 – od km 15+146 do km 29+619
A2: Branża: | C2: BRANŻA MELIORACYJNA 22.07
A3: Obiekt: | C3: Melioracje szczegółowe
A4: Kod CPV: | C4: 45000000-9 Roboty budowlane w zakresie wznoszenia kompletnych obiektów budowlanych lub ich części oraz roboty w zakresie inżynierii lądowej i wodnej
A5: Poz. | B5: Podstawa wyceny | C5: Wyszczególnienie elementu rozliczeniowego | D5: Jedn. | E5: Ilość jedn. | F5: Cena jedn. | G5: Wartość robót
C6: Roboty przygotowawcze | F6: x | G6: x
A7: 1 | C7: Roboty pomiarowe - wytyczenie trasy rurociągów | D7: m | E7: 281.50
A8: 2 | C8: Wykopy kontrolne | D8: m3 | E8: 532.00
C9: Roboty ziemne | F9: X | G9: X
A10: 3 | C10: Odwodnienie wykopów za pomocą igłofiltrów wpłukiwanych jednostronnie DN32 | D10: mb | E10: 281.50
A11: 4 | C11: Usunięcie warstwy ziemi urodzajnej 30 cm wraz z odtworzeniem (rozplantowaniem po zasypaniu wykopu) | D11: m2 | E11: 1582.03
A12: 5 | C12: Wykopy mechaniczne z rozkopem o ścianach z nachyleniem 1:1.5 | D12: m3 | E12: 3282.29
A13: 6 | C13: Podsypka, obsypka piaskowa wraz z zagęszczaniem ręcznym | D13: m3 | E13: 112.60
A14: 7 | C14: Zasypanie wykopów gruntem rodzimym wraz z zagęszczaniem mechanicznym | D14: m3 | E14: 3126.06
A15: 8 | C15: Wywiezienie nadmiaru gruntu z wykopu i składowanie na terenie budowy | D15: m3 | E15: 156.23
C16: Rurociągi PVC ze ścianką litą | F16: X | G16: X
A17: 9 | C17: Rura PVC DN 200* | D17: m | E17: 187.67
A18: 10 | C18: Rura PVC DN 300* | D18: m | E18: 46.92
A19: 11 | C19: Rura PVC DN 500* | D19: m | E19: 46.92
C20: Rury osłonowe PE | F20: X | G20: X
A21: 12 | C21: Rura osłonowa DN 300* | D21: m | E21: 101.87
A22: 13 | C22: Rura osłonowa DN 400* | D22: m | E22: 46.92
A23: 14 | C23: Rura osłonowa DN 800* | D23: m | E23: 46.92
A24: 15 | C24: Płozy dystansowe dla PE 300 R28* | D24: szt. | E24: 40.00
A25: 16 | C25: Płozy dystansowe dla PE 400 R28* | D25: szt. | E25: 50.00
A26: 17 | C26: Płozy dystansowe dla PE 800 SM DUO I* | D26: szt. | E26: 50.00
C27: Studnie melioracyjne bez dna | F27: X | G27: X
A28: 18 | C28: Studzienka śred. 1 m, wys. 3.5 m* | D28: kpl | E28: 21.00
C29: Wyloty melioracyjne | F29: X | G29: X
A30: 19 | C30: Wylot prefabrykowany DN300 wg KPED 02.17* | D30: kpl | E30: 10.00
A31: 20 | C31: Wylot prefabrykowany DN600 wg KPED 02.16* | D31: kpl | E31: 1.00
C32: Zaślepki | F32: X | G32: X
A33: 21 | C33: Zsąlepka PCV lub korek betonowy | D33: kpl | E33: 4.00
G34: =SUM(G7:G33) -> 0.00
B36: ________________ | D36: ______________
B37: miejscowość, data | D37: podpis Wykonawcy
